Workbook

Sheet Builders Risk Rater
B1: SOUTHERN INSURANCE UNDERWRITERS
B2: BUILDER'S RISK APPLICATION
C5: INSURED: | D5: Enter Insured Name | Q5: PROJECT LENGTH:
C7: ADDRESS: | D7: Enter Risk Address | Q7: EFFECTIVE DATE: | R7: 2021-01-01
R8: MM/DD/YYYY
C9: =IF(L9="Enter Zip","CITY/STATE:","CITY:") -> CITY/STATE: | D9: =VLOOKUP($L$9,'Builders Risk Location Tables'!$A$2:$C$3823,3,0) -> Enter Zip to determine City, State, and County | I9: =IF(L9="Enter Zip","","STATE:") ->  | J9: =VLOOKUP(L9,'Builders Risk Location Tables'!$A$2:$F$3823,6,0) -> 0 | K9: ZIP: | L9: Enter Zip | Q9: EXPIRATION DATE: | R9: =IF(R7="","",IFERROR(EDATE(R7,SELECTED_PROJECTLENGTH*3),"")) -> 2022-01-01
C11: FORM: | D11: BUILDERS RISK | I11: COUNTY: | J11: =VLOOKUP(L9,'Builders Risk Location Tables'!$A$2:$D$3823,4,0) -> 0
B13: RATING ELEMENTS
C15: PROJECT TYPE: | I15: DISTANCE TO COAST: | R15: RISK MANAGEMENT: | U15: =VLOOKUP(SELECTED_RISKMANAGMENT,'Builders Risk Input'!$F$9:$G$12,2,0) -> Good
C17: CONSTRUCTION: | I17: PROTECTION CLASS: | R17: IRPM: | U17: =VLOOKUP(SELECTED_IRPM,'Builders Risk Input'!$F$17:$G$20,2,0) -> Good
C19: OCCUPANCY: | I19: PROJECT SQUARE FEET: | K19: 10000 | O19: FT | R19: LOSS EXPERIENCE: | U19: =VLOOKUP(Selected_LossExperience,'Builders Risk Input'!$F$25:$G$28,2,0) -> Good
C21: AGE OF STUCTURE: | J21: CONST VALUE / SQ FEET: | K21: =ROUND(IFERROR(Selected_ConstructionValue/$K$19,0),0) -> 0 | R21: PROTECTION/SECURITY: | U21: =VLOOKUP(Selected_ProtectiveDevice,'Builders Risk Input'!$F$33:$G$36,2,0) -> Good
M23: SOUTHERN INSURANCE UNDERWRITERS OFFERS CREDITS FOR RISK MANAGEMENT, IRPM, LOSS EXPERIENCEC, AND PROTECTIVE DEVICES AT THE UNDERWRITERS DISCRETION. PLEASE SUBMIT SUPPORT FOR EACH CREDIT WHEN SUBMITTING THE APPLICATION.
B25: LIMIT & COVERAGE SELECTIONS
C27: COVERAGE LIMITS | I27: POLICY OPTIONS
D29: CONTRUCTION VALUE: | E29: 0 | K29: AOP DEDUCTIBLE:
D31: EXISTING STRUCTURE VALUE: | K31: WIND COVERAGE:
D33: POLICY LIMIT: | E33: =E29+E31 -> 0
B38: ADDITIONAL UNDERWRITING ELIGIBILITY QUESTIONS
C40: • IS WORK BEING DONE BY A CONTRACTOR? | I40: =IF(SELECTED_PROJTYPE=1,"• HAS WORK BEGUN PAST THE FOUNDATION?","• IS ANY OF THE WORK STRUCTURAL?") -> • HAS WORK BEGUN PAST THE FOUNDATION?
D42: =IF(AND(Selected_UWOverride=1,Triggered_Edit_04=1),"Ineligible For Coverage","") ->  | K42: =IF(AND(Selected_UWOverride=1,OR(Triggered_Edit_03=1,Triggered_Edit_02=1)),"Ineligible For Coverage","") -> 
B45: PREMIUM BY COVERAGE
G47: AGENCY INFORMATION | O47: MORTGAGEE INFORMATION
G48: AGENCY NAME:
G49: Enter Agency Name | O49: MORTGAGEE:
G50: AGENCY PHONE:
G51: Enter Agency Phone Number | O51: MORTGAGEE NAME:
O52: Enter Mortgagee Name
O54: LOAN NUMBER:
C55: SIU_BUILDERSRISK_2021 12 07 | O55: Enter Loan Number
C56: To quote coverage, please send a copy of this application to quote@siuins.com. Additional information may be required and that information my impact eligibility and pricing.
B58: EDITS & NOTIFICATIONS
C60: ID | D60: FIELD | E60: DESCRIPTION | S60: ALLOW RATE | U60: OVERRIDDEN
C61: =IF(ROWS(C$61:C61)>Number_Triggered_Edits,"",INDEX(Table2[Edit Num],SMALL(IF(Table2[Triggered]=1,ROW(Table2[Edit Num])-ROW('Builders Risk Validations'!$B$14)+1),ROWS('Builders Risk Rater'!C$61:C61)))) ->  | D61: =IFERROR(VLOOKUP(C61,Table2[[Edit Num]:[Allow Rate]],2,0),"") ->  | E61: =IFERROR(VLOOKUP(C61,Table2[[Edit Num]:[Allow Rate]],3,0),"") ->  | S61: =IFERROR(VLOOKUP(C61,Table2[[Edit Num]:[Allow Rate]],4,0),"") ->  | U61: =IFERROR(VLOOKUP(C61,Table2[[Edit Num]:[UW Override]],5,0),"") -> 
C62: =IF(ROWS(C$61:C62)>Number_Triggered_Edits,"",INDEX(Table2[Edit Num],SMALL(IF(Table2[Triggered]=1,ROW(Table2[Edit Num])-ROW('Builders Risk Validations'!$B$14)+1),ROWS('Builders Risk Rater'!C$61:C62)))) ->  | D62: =IFERROR(VLOOKUP(C62,Table2[[Edit Num]:[Allow Rate]],2,0),"") ->  | E62: =IFERROR(VLOOKUP(C62,Table2[[Edit Num]:[Allow Rate]],3,0),"") ->  | S62: =IFERROR(VLOOKUP(C62,Table2[[Edit Num]:[Allow Rate]],4,0),"") ->  | U62: =IFERROR(VLOOKUP(C62,Table2[[Edit Num]:[UW Override]],5,0),"") -> 
C63: =IF(ROWS(C$61:C63)>Number_Triggered_Edits,"",INDEX(Table2[Edit Num],SMALL(IF(Table2[Triggered]=1,ROW(Table2[Edit Num])-ROW('Builders Risk Validations'!$B$14)+1),ROWS('Builders Risk Rater'!C$61:C63)))) ->  | D63: =IFERROR(VLOOKUP(C63,Table2[[Edit Num]:[Allow Rate]],2,0),"") ->  | E63: =IFERROR(VLOOKUP(C63,Table2[[Edit Num]:[Allow Rate]],3,0),"") ->  | S63: =IFERROR(VLOOKUP(C63,Table2[[Edit Num]:[Allow Rate]],4,0),"") ->  | U63: =IFERROR(VLOOKUP(C63,Table2[[Edit Num]:[UW Override]],5,0),"") -> 
C64: =IF(ROWS(C$61:C64)>Number_Triggered_Edits,"",INDEX(Table2[Edit Num],SMALL(IF(Table2[Triggered]=1,ROW(Table2[Edit Num])-ROW('Builders Risk Validations'!$B$14)+1),ROWS('Builders Risk Rater'!C$61:C64)))) ->  | D64: =IFERROR(VLOOKUP(C64,Table2[[Edit Num]:[Allow Rate]],2,0),"") ->  | E64: =IFERROR(VLOOKUP(C64,Table2[[Edit Num]:[Allow Rate]],3,0),"") ->  | S64: =IFERROR(VLOOKUP(C64,Table2[[Edit Num]:[Allow Rate]],4,0),"") ->  | U64: =IFERROR(VLOOKUP(C64,Table2[[Edit Num]:[UW Override]],5,0),"") -> 
C65: =IF(ROWS(C$61:C65)>Number_Triggered_Edits,"",INDEX(Table2[Edit Num],SMALL(IF(Table2[Triggered]=1,ROW(Table2[Edit Num])-ROW('Builders Risk Validations'!$B$14)+1),ROWS('Builders Risk Rater'!C$61:C65)))) ->  | D65: =IFERROR(VLOOKUP(C65,Table2[[Edit Num]:[Allow Rate]],2,0),"") ->  | E65: =IFERROR(VLOOKUP(C65,Table2[[Edit Num]:[Allow Rate]],3,0),"") ->  | S65: =IFERROR(VLOOKUP(C65,Table2[[Edit Num]:[Allow Rate]],4,0),"") ->  | U65: =IFERROR(VLOOKUP(C65,Table2[[Edit Num]:[UW Override]],5,0),"") -> 
C66: =IF(ROWS(C$61:C66)>Number_Triggered_Edits,"",INDEX(Table2[Edit Num],SMALL(IF(Table2[Triggered]=1,ROW(Table2[Edit Num])-ROW('Builders Risk Validations'!$B$14)+1),ROWS('Builders Risk Rater'!C$61:C66)))) ->  | D66: =IFERROR(VLOOKUP(C66,Table2[[Edit Num]:[Allow Rate]],2,0),"") ->  | E66: =IFERROR(VLOOKUP(C66,Table2[[Edit Num]:[Allow Rate]],3,0),"") ->  | S66: =IFERROR(VLOOKUP(C66,Table2[[Edit Num]:[Allow Rate]],4,0),"") ->  | U66: =IFERROR(VLOOKUP(C66,Table2[[Edit Num]:[UW Override]],5,0),"") -> 
C67: =IF(ROWS(C$61:C67)>Number_Triggered_Edits,"",INDEX(Table2[Edit Num],SMALL(IF(Table2[Triggered]=1,ROW(Table2[Edit Num])-ROW('Builders Risk Validations'!$B$14)+1),ROWS('Builders Risk Rater'!C$61:C67)))) ->  | D67: =IFERROR(VLOOKUP(C67,Table2[[Edit Num]:[Allow Rate]],2,0),"") ->  | E67: =IFERROR(VLOOKUP(C67,Table2[[Edit Num]:[Allow Rate]],3,0),"") ->  | S67: =IFERROR(VLOOKUP(C67,Table2[[Edit Num]:[Allow Rate]],4,0),"") ->  | U67: =IFERROR(VLOOKUP(C67,Table2[[Edit Num]:[UW Override]],5,0),"") -> 
C68: =IF(ROWS(C$61:C68)>Number_Triggered_Edits,"",INDEX(Table2[Edit Num],SMALL(IF(Table2[Triggered]=1,ROW(Table2[Edit Num])-ROW('Builders Risk Validations'!$B$14)+1),ROWS('Builders Risk Rater'!C$61:C68)))) ->  | D68: =IFERROR(VLOOKUP(C68,Table2[[Edit Num]:[Allow Rate]],2,0),"") ->  | E68: =IFERROR(VLOOKUP(C68,Table2[[Edit Num]:[Allow Rate]],3,0),"") ->  | S68: =IFERROR(VLOOKUP(C68,Table2[[Edit Num]:[Allow Rate]],4,0),"") ->  | U68: =IFERROR(VLOOKUP(C68,Table2[[Edit Num]:[UW Override]],5,0),"") -> 
C69: =IF(ROWS(C$61:C69)>Number_Triggered_Edits,"",INDEX(Table2[Edit Num],SMALL(IF(Table2[Triggered]=1,ROW(Table2[Edit Num])-ROW('Builders Risk Validations'!$B$14)+1),ROWS('Builders Risk Rater'!C$61:C69)))) ->  | D69: =IFERROR(VLOOKUP(C69,Table2[[Edit Num]:[Allow Rate]],2,0),"") ->  | E69: =IFERROR(VLOOKUP(C69,Table2[[Edit Num]:[Allow Rate]],3,0),"") ->  | S69: =IFERROR(VLOOKUP(C69,Table2[[Edit Num]:[Allow Rate]],4,0),"") ->  | U69: =IFERROR(VLOOKUP(C69,Table2[[Edit Num]:[UW Override]],5,0),"") -> 
B70: =IF(_xlfn.SINGLE(Number_NoRate_Triggered_Edits)>0,"EDITS ABOVE IN RED NEED TO BE ADDRESSED TO GENERATE A RATE","") -> 

Sheet Builders Risk Admin (hidden)
A1: SOUTHERN INSURANCE UNDERWRITERS
A2: BUILDER'S RISK RATING & APPLICATION TOOL
A3: ADMINISTRATION PAGE
A5: CREDIT/DEBIT SELECTION | H5: UW OVERRIDE VALIDATIONS
C6: CREDIT/DEBIT
A7: RATING ELEMENT | B7: SELECTED INPUT | C7: Poor | D7: Fair | E7: Good | F7: Great
A8: RISK MANAGEMENT | B8: Fair | C8: 1.2 | D8: 1.1 | E8: 1 | F8: 1
H9: UW VALIDATION OVERRIDE
A10: IRPM | C10: 1.2 | D10: 1.1 | E10: 1 | F10: 1
H11: UW NOTES (OPTIONAL):
A12: LOSS EXPERIENCE | C12: 1.2 | D12: 1.1 | E12: 1 | F12: 1
A14: PROTECTION/SECURITY | C14: 1.2 | D14: 1.1 | E14: 1 | F14: 1
C16: SELECTED RATING FACTOR
A25: SECURITY

Sheet Builders Risk Rating Worksheet (hidden)
A1: SOUTHERN INSURANCE UNDERWRITERS
A2: BUILDER'S RISK RATING & APPLICATION TOOL
A3: RATING WORKSHEET
B7: Named Insured | C7: ='Builders Risk Rater'!D5 -> Enter Insured Name | D7: City | E7: State | F7: County
B8: Address | C8: ='Builders Risk Rater'!D7 -> Enter Risk Address | D8: ='Builders Risk Rater'!D9 -> Enter Zip to determine City, State, and County | E8: ='Builders Risk Rater'!$J$9 -> 0 | F8: ='Builders Risk Rater'!J11 -> 0
B9: Zip Code | C9: ='Builders Risk Rater'!L9 -> Enter Zip
B10: Territory | C10: ='Builders Risk Input'!B140 -> 0
E11: BUILDERS RISK RATING
B12: Construction Type | C12: =VLOOKUP('Builders Risk Input'!$B$7,'Builders Risk Input'!$A$9:$B$14,2,0) -> FRAME | E12: Construction Length | F12: =VLOOKUP(SELECTED_PROJECTLENGTH,'Builders Risk Input'!A79:B82,2,0) -> 12 MONTHS | G12: ='Builders Risk Rater'!R9 -> 2022-01-01
E13: Base Rate | F13: ='Builders Risk Logic'!D2 -> 0.32
B14: Deductible | C14: =VLOOKUP('Builders Risk Input'!B16,'Builders Risk Input'!A18:C21,3,0) -> 500 | E14: Final Modified Rate | F14: ='Builders Risk Logic'!D4 -> 0.576
E15: Limit | F15: =C18+C20 -> 0
B16: Project Type | C16: =VLOOKUP('Builders Risk Input'!B24,'Builders Risk Input'!$A$26:$B$28,2,0) -> NEW CONSTRUCTION | E16: Deductible | F16: =IF(C36="Residential",C14,IF(C14<1000,1000,C14)) -> 500
E17: 12Mo Premium | F17: =F14*(F15/100) -> 0
B18: Construction Value | C18: ='Builders Risk Rater'!$E$29 -> 0 | E18: Pro-rata % | F18: =VLOOKUP(SELECTED_PROJECTLENGTH,'Builders Risk Input'!$A$79:$D$82,3,0) -> 1
E19: ProRata Premium | F19: =ROUND(F17*F18,2) -> 0
B20: Existing Structure Value | C20: ='Builders Risk Rater'!$E$31 -> 0 | E20: Minimum Premium Check | F20: =VLOOKUP(SELECTED_PROJECTLENGTH,'Builders Risk Input'!$A$79:$D$82,4,0) -> 500
E21: Final Risk Premium | F21: =MAX(F19,F20) -> 500
B22: Age Of Structure in Years | C22: =VLOOKUP(SELECTED_STRUCTUREAGE,'Builders Risk Input'!A95:C103,2,0) -> NEW CONSTRUCTION | E22: Fees | F22: 75
E23: Taxes % | F23: =IFERROR(VLOOKUP($E$8,'Builders Risk Input'!$B$87:$D$90,2,0),0) -> 0
B24: Distance To Coast | C24: =VLOOKUP('Builders Risk Input'!B31,'Builders Risk Input'!$A$33:$B$36,2,0) -> 2 MILES OR LESS | E24: Taxes $ | F24: =IFERROR(VLOOKUP($E$8,'Builders Risk Input'!$B$87:$D$90,3,0),0) -> 0
E25: Taxes Total | F25: =ROUND(SUM(F21:F22)*F23+F24,0) -> 0
B26: Protection Value | C26: =VLOOKUP('Builders Risk Input'!$B$39,'Builders Risk Input'!$A$41:$B$50,2,0) -> 1
E27: INSTALLATION FLOATER RATING
B28: Risk Management | C28: =VLOOKUP(SELECTED_RISKMANAGMENT,'Builders Risk Input'!$F$9:$G$12,2,0) -> Good | E28: Installation Floater | F28: =VLOOKUP(SELECTED_INSTALLATIONFLOATER,'Builders Risk Input'!$A$73:$D$74,2,0) -> NO
E29: Inst Floater Mult | F29: =IF(F28="Yes",1,0) -> 0
B30: IRPM | C30: =VLOOKUP(SELECTED_IRPM,'Builders Risk Input'!$F$17:$G$20,2,0) -> Good | E30: Limit | F30: =('Builders Risk Rater'!L33)*$F$29 -> 0
E31: Rate Per Hund | F31: 0.3
B32: Loss Experience | C32: =VLOOKUP(Selected_LossExperience,'Builders Risk Input'!$F$25:$G$28,2,0) -> Good | E32: IRPM Adjustment | F32: ='Builders Risk Logic'!$B$10 -> 1
E33: Pro-Rata% | F33: =F18 -> 1
B34: Protection / Security | C34: =VLOOKUP(Selected_ProtectiveDevice,'Builders Risk Input'!$F$33:$G$36,2,0) -> Good | E34: Premium | F34: =ROUND(F30/100*F31*F32*F33,2) -> 0
E35: Minimum Premium | F35: =F20 -> 500
B36: Residential or Commercial? | C36: =VLOOKUP('Builders Risk Input'!B53,'Builders Risk Input'!$A$55:$B$56,2,0) -> RESIDENTIAL | E36: Final Risk Premium | F36: =IF(F28="no",0,MAX(F34,F35)) -> 0
E37: Fees | F37: =VLOOKUP(SELECTED_INSTALLATIONFLOATER,'Builders Risk Input'!$A$73:$D$74,4,0) -> 0
B38: Wind? | C38: =VLOOKUP('Builders Risk Input'!$B$65,'Builders Risk Input'!$A$67:$B$68,2,0) -> YES | E38: Taxes% | F38: =IFERROR(VLOOKUP(SELECTED_STATE,'Builders Risk Input'!$A$87:$D$90,3,0)*$F$29,0) -> 0
E39: Taxes $ | F39: 0
B40: Model Home? | C40: =VLOOKUP('Builders Risk Input'!$B$59,'Builders Risk Input'!$A$61:$B$62,2,0) -> YES | E40: Taxes Total | F40: =ROUND((SUM(F36:F37)*F38)+F39,0) -> 0
B43: UW NOTES:
B44: =IF('Builders Risk Admin'!H12="","",'Builders Risk Admin'!H12) -> 
F50: UW NOTES ENTERED ON ADMIN PAGE

Sheet Questions (hidden)
A2: 1 | B2: Does risk age affect rating. Doesn’t look like it is being considered in the current rating algorithm
A3: 2 | B3: For the time being I put risk age in 10yr bands - I can make changes depending on #1 above
A4: 3 | B4: Taxes - fixed dollar for the Installation Floater?
A5: 4 | B5: Should IRPM/Credits apply to installation floater?

Sheet Builders Risk Input (hidden)
A1: SOUTHERN INSURANCE UNDERWRITERS
A2: BUILDER'S RISK RATING & APPLICATION TOOL
A3: INPUT MANAGEMENT
A5: RATER PAGE | F5: ADMIN PAGE
A7: SELECTED CONSTRUCTION | B7: 1 | F7: SELECTED RISK MANAGEMENT | G7: 3
A8: Construction ID | B8: Construction Definition | F8: RISK MGT ID | G8: RISK MGT
A9: 1 | B9: FRAME | F9: 1 | G9: Poor
A10: 2 | B10: NON COMBUSTIBLE | F10: 2 | G10: Fair
A11: 3 | B11: JOISTED MASONRY | F11: 3 | G11: Good
A12: 4 | B12: MASONRY NON COMBUSTIBLE | F12: 4 | G12: Great
A13: 5 | B13: FIRE RESISTIVE
A14: 6 | B14: LIGHT METAL FRAME
F15: SELECTED IRPM | G15: 3
A16: SELECTED DEDUCTIBLE | B16: 1 | F16: IRPM ID | G16: IRPM
A17: Deductible ID | B17: Deductible Display | C17: Deductible | F17: 1 | G17: Poor
A18: 1 | B18: 500 | C18: 500 | F18: 2 | G18: Fair
A19: 2 | B19: 1000 | C19: 1000 | F19: 3 | G19: Good
A20: 3 | B20: 2000 | C20: 2000 | F20: 4 | G20: Great
A21: 4 | B21: 5000 | C21: 5000
F23: SELECTED LOSS EXPERIENCE | G23: 3
A24: SELECTED PROJ TYPE | B24: 1 | F24: LOSS EXPERIENCE ID | G24: LOSS EXPERIENCE
A25: Project Type ID | B25: Project Type | C25: RATING BASIS | F25: 1 | G25: Poor
A26: 1 | B26: NEW CONSTRUCTION | C26: Construction | F26: 2 | G26: Fair
A27: 2 | B27: REHABILITATION | C27: Installation | F27: 3 | G27: Good
A28: 3 | B28: REMODEL | C28: Installation | F28: 4 | G28: Great
A31: SELECTED DTC | B31: 1 | F31: SELECTED PROTECTIVE DEVICE | G31: 3
A32: DTC ID | B32: DTC | F32: PROTECTIVE DEVICE ID | G32: PROTECTIVE DEVICE
A33: 1 | B33: 2 MILES OR LESS | F33: 1 | G33: Poor
A34: 2 | B34: 2+ MILES TO 10 MILES | F34: 2 | G34: Fair
A35: 3 | B35: 10+ MILES TO 20 MILES | F35: 3 | G35: Good
A36: 4 | B36: OVER 20 MILES | F36: 4 | G36: Great
A39: SELECTED PROTECTION CLASS | B39: 1 | F39: UW OVERRIDE | G39: 1
A40: PROTECTION CLASS ID | B40: PC | F40: UW OVERRIDE ID | G40: UW OVERRIDE
A41: 1 | B41: 1 | F41: 1 | G41: No
A42: 2 | B42: 2 | F42: 2 | G42: Yes
A43: 3 | B43: 3
A44: 4 | B44: 4
A45: 5 | B45: 5
A46: 6 | B46: 6
A47: 7 | B47: 7
A48: 8 | B48: 8
A49: 9 | B49: 9
A50: 10 | B50: 10
A53: SELECTED OCCUPANCY | B53: 1
A54: OCCUPANCY ID | B54: OCCUPANCY | C54: Min Value/SQ Feet
A55: 1 | B55: RESIDENTIAL | C55: 125
A56: 2 | B56: COMMERCIAL | C56: 150
A59: SELECTED MODEL HOME | B59: 1
A60: MODEL HOME ID | B60: MODEL HOME
A61: 1 | B61: YES
A62: 2 | B62: NO
A65: SELECTED WIND COVERAGE | B65: 1
A66: WIND COVERAGE ID | B66: WIND COVERAGE
A67: 1 | B67: YES
A68: 2 | B68: NO
A71: INSTALLATION FLOATER | B71: 2
A72: INSTALLATION FLOATER ID | B72: INSTALLATION FLOATER | C72: INST FLT MIN PREM | D72: INSTALLATION FEE
A73: 1 | B73: YES | C73: 500 | D73: 75
A74: 2 | B74: NO | C74: 0 | D74: 0
A77: PROJECT LENGTH | B77: 4
A78: PROJECT LENGTH ID | B78: PROJECT LENGTH DEF | C78: PRO RATA CHARGE | D78: MINIMUM PREMIUM
A79: 1 | B79: 3 MONTHS | C79: 0.25 | D79: 250
A80: 2 | B80: 6 MONTHS | C80: 0.5 | D80: 350
A81: 3 | B81: 9 MONTHS | C81: 0.75 | D81: 400
A82: 4 | B82: 12 MONTHS | C82: 1 | D82: 500
A85: STATE | B85: =VLOOKUP(C85,$B$87:$E$90,4,0) ->  | C85: ='Builders Risk Rater'!J9 -> 0
A86: STATE ID | B86: STATE | C86: TAX % | D86: TAX $
A87: 1 | B87: AL | C87: 0.06 | D87: 0 | E87: =A87 -> 1
A88: 2 | B88: GA | C88: 0.04 | D88: 0 | E88: =A88 -> 2
A89: 3 | B89: FL | C89: 0.051 | D89: 4 | E89: 3
A90: 4 | B90: SC | C90: 0.06 | D90: 0 | E90: 4
A93: STRUCTURE AGE | B93: 1
A94: AGE ID | B94: AGE BAND | C94: RATER AGE
A95: 1 | B95: NEW CONSTRUCTION | C95: 0
A96: 2 | B96: 1-10 YEARS | C96: 5
A97: 3 | B97: 11-20 YEARS | C97: 15
A98: 4 | B98: 21-30 YEARS | C98: =C97+10 -> 25
A99: 5 | B99: 31-40 YEARS | C99: =C98+10 -> 35
A100: 6 | B100: 41-50 YEARS | C100: =C99+10 -> 45
A101: 7 | B101: 51-75 YEARS | C101: 62
A102: 8 | B102: 76-100 YEARS | C102: 88
A103: 9 | B103: 100+ YEARS | C103: 100
A106: FOUNDATION WORK | B106: 1 | C106: CONSOLIDATED STRUCTURAL QUESTION WITH 6/30/21 VERSION
A107: FOUNDATION WORK ID | B107: FOUNDATION WORK
A108: 1 | B108: YES
A109: 2 | B109: NO
A112: STRUCTURAL or FOUNDATION | B112: 2
A113: STRUCTURAL WORK ID | B113: STRUCTURAL WORK
A114: 1 | B114: YES
A115: 2 | B115: NO
A118: CONTRACTOR | B118: 1
A119: CONTRACTOR ID | B119: CONTRACTOR
A120: 1 | B120: YES
A121: 2 | B121: NO
A124: MORTGAGEE | B124: 1
A125: MORTGAGEE ID | B125: MORTGAGEE
A126: 1 | B126: YES
A127: 2 | B127: NO
A130: PROJECT VALUE | B130: 1
A131: MORTGAGEE ID | B131: PROJECT VALUE
A132: SQ Feet | B132: =IF(ISBLANK('Builders Risk Rater'!K19),1,'Builders Risk Rater'!K19) -> 10000
A133: Project Value | B133: =Selected_ConstructionValue -> 0
A134: PROJECT VALUE/SQ FEET | B134: =B133/B132 -> 0
A137: SELECTED TERRITORY
A139: ZIP CODE | B139: ='Builders Risk Rater'!L9 -> Enter Zip
A140: WINDZONE | B140: =VLOOKUP(B139,'Builders Risk Location Tables'!$A$2:$G$3823,MATCH($A$140,'Builders Risk Location Tables'!$A$1:$G$1,0),0) -> 0
A141: TERRITORY_CODE | B141: =VLOOKUP(B139,'Builders Risk Location Tables'!$A$2:$G$3823,MATCH($A$141,'Builders Risk Location Tables'!$A$1:$G$1,0),0) -> 0

Sheet Property Rater (hidden)
C2: Named Insured | D2: Test Name | E2: City | F2: State | G2: County | H2: Coverage Type | I2: x to select | J2: Values / Limits
C3: Address | D3: 123 Main Street City St | E3: =IFERROR(VLOOKUP(D4,'Prop Location Tables'!A2:D8093,3,FALSE),"") -> Saint Marys | F3: =IFERROR(VLOOKUP(D4,'Prop Location Tables'!A2:D8093,2,FALSE),"") -> Georgia | G3: =IFERROR(VLOOKUP(D4,'Prop Location Tables'!A2:D8093,4,FALSE),"") -> Camden | H3: Bldg. | I3: x | J3: 1000000 | L3: BLDG Manager Override Factor | M3: 1
C4: Zip Code | D4: 31558 | H4: BPP | I4: x | J4: 1 | L4: BPP Manager Override Factor | M4: 1
C5: Policy Length | D5: 2021-03-01 | E5: 2022-03-01 | F5: Valuation | G5: Actual Cash Value | H5: BI | I5: x | J5: 50000 | L5: BI Manager Override Factor | M5: 1
H6: Stock | I6: x | J6: 200000 | L6: STOCK Manager Override Factor | M6: 1
C7: Number of Stories | D7: 1 | F7: Coverage Type | G7: Special
I8: Wind Zone Location | J8: =IFERROR(VLOOKUP(D4,'Prop Location Tables'!A2:E8093,5,FALSE),"") -> GAZN1 | L8: Location V Buildings logic
C9: Year Built | D9: 1990 | F9: Protection Class | G9: 5
I10: Rating Class | J10: =IF(D13>=25%,VLOOKUP(D17,'Property Occupancy Table'!D2:E139,2,FALSE),"High/Vacant") -> LOW
C11: Total Square Footage | D11: 2878 | F11: Distance to Coast | G11: 25 m1les or more
I12: Age of building | J12: =2019-D9 -> 29
C13: Percent Occupied | D13: 1 | F13: AOP Deductible Credit | G13: 2500
I14: Per sq. Foot Value | J14: =J3/D11 -> 347.4635163
C15: Wind or No Wind? | D15: Yes | F15: Wind Deductible Credit | G15: 0.05
I16: BASE RATE | J16: ='Property Logic'!G3 -> 0.54
C17: Occupancy Class | D17: Beverage Distributors & Beverage Stores | F17: Sprinkler Credit | G17: No | I17: Final Modified Rate | J17: ='Property Logic'!I3 -> 0.466443605
I18: X-Wind Rate | J18: =IF(D15= "Yes", 'Property Logic'!C18, 'Property Logic'!C10) -> 0.6
C19: Secondary Occupancy | D19: Material5 | F19: 3 years Loss Free? | G19: Yes | I19: Per Occurrence Limit | J19: =J3 -> 1000000
I20: Aggregate Limit | J20: =J3 -> 1000000
C21: Construction Type | D21: Fire Resistive | F21: Building Security | G21: Yes | I21: AOP Deductible | J21: =IF(G13="No",500,G13) -> 2500
I22: Wind? | J22: =D15 -> Yes
C23: Exterior Cladding | D23: Brick | F23: Fire Protection | G23: No | I23: Wind Deductible | J23: =(IF(D15="Yes",IF(G15="No",J21,'Property Logic'!Q42),"Not Offered")) -> 1
I24: Bldg. Premium | J24: ='Property Logic'!J3*M3 -> 4664.43605
C25: Roof Material | D25: Material5 | F25: Wind Resistive | G25: No | I25: BPP Premium | J25: ='Property Logic'!J4*M4 -> 0.00466443605
I26: BI Premium | J26: ='Property Logic'!J5*M5 -> 233.2218025
C27: Roof Age | D27: 2015 | F27: Aluminum Wiring | G27: No | I27: Stock Premium | J27: ='Property Logic'!J6*M6 -> 932.8872099
I28: Total Premium | J28: =IF(SUM(J24:J27)>=500,SUM(J24:J27),"$500") -> 5830.549726
C29: Electrical Age | D29: 2015 | F29: Package Credits | G29: Yes | I29: Notes: | J29: ='Property Logic'!D100 -> 0
J30: ='Property Logic'!D101 -> 0
C31: HVAC Age | D31: 2015 | F31: BPP Rating Factor 1 | G31: Low | J31: ='Property Logic'!D102 -> 0
J32: ='Property Logic'!D103 -> 0
C33: Plumbing Age | D33: 2015 | F33: BPP Rating Factor 2 | G33: Low
C35: Last Updates of the Structure | D35: 2000 | F35: BI Rating Factor | G35: Low
F37: Stock rating factor | G37: Low

Sheet County Lists (hidden)
A5: State | B5: County | D5: State | E5: County | G5: State | H5: County | J5: State | K5: County | M5: State | N5: County
B6: Enter County | E6: Enter County | H6: Enter County | K6: Enter County | N6: Enter County
A7: Alabama | B7: Autauga | D7: South Carolina | E7: Abbeville | G7: Florida | H7: Alachua | J7: Georgia | K7: Appling | M7: ALL OTHER | N7: -
A8: Alabama | B8: Baldwin | D8: South Carolina | E8: Aiken | G8: Florida | H8: Baker | J8: Georgia | K8: Atkinson
A9: Alabama | B9: Barbour | D9: South Carolina | E9: Allendale | G9: Florida | H9: Bay | J9: Georgia | K9: Bacon
A10: Alabama | B10: Bibb | D10: South Carolina | E10: Anderson | G10: Florida | H10: Bradford | J10: Georgia | K10: Baker
A11: Alabama | B11: Blount | D11: South Carolina | E11: Bamberg | G11: Florida | H11: Brevard | J11: Georgia | K11: Baldwin
A12: Alabama | B12: Bullock | D12: South Carolina | E12: Barnwell | G12: Florida | H12: Broward | J12: Georgia | K12: Banks
A13: Alabama | B13: Butler | D13: South Carolina | E13: Beaufort | G13: Florida | H13: Calhoun | J13: Georgia | K13: Barrow
A14: Alabama | B14: Calhoun | D14: South Carolina | E14: Berkeley | G14: Florida | H14: Charlotte | J14: Georgia | K14: Bartow
A15: Alabama | B15: Chambers | D15: South Carolina | E15: Calhoun | G15: Florida | H15: Citrus | J15: Georgia | K15: Ben Hill
A16: Alabama | B16: Cherokee | D16: South Carolina | E16: Charleston | G16: Florida | H16: Clay | J16: Georgia | K16: Berrien
A17: Alabama | B17: Chilton | D17: South Carolina | E17: Cherokee | G17: Florida | H17: Collier | J17: Georgia | K17: Bibb
A18: Alabama | B18: Choctaw | D18: South Carolina | E18: Chester | G18: Florida | H18: Columbia | J18: Georgia | K18: Bleckley
A19: Alabama | B19: Clarke | D19: South Carolina | E19: Chesterfield | G19: Florida | H19: De Soto | J19: Georgia | K19: Brantley
A20: Alabama | B20: Clay | D20: South Carolina | E20: Clarendon | G20: Florida | H20: Dixie | J20: Georgia | K20: Brooks
A21: Alabama | B21: Cleburne | D21: South Carolina | E21: Colleton | G21: Florida | H21: Duval | J21: Georgia | K21: Bryan
A22: Alabama | B22: Coffee | D22: South Carolina | E22: Darlington | G22: Florida | H22: Escambia | J22: Georgia | K22: Bulloch
A23: Alabama | B23: Colbert | D23: South Carolina | E23: Dillon | G23: Florida | H23: Flagler | J23: Georgia | K23: Burke
A24: Alabama | B24: Conecuh | D24: South Carolina | E24: Dorchester | G24: Florida | H24: Franklin | J24: Georgia | K24: Butts
A25: Alabama | B25: Coosa | D25: South Carolina | E25: Edgefield | G25: Florida | H25: Gadsden | J25: Georgia | K25: Calhoun
A26: Alabama | B26: Covington | D26: South Carolina | E26: Fairfield | G26: Florida | H26: Gilchrist | J26: Georgia | K26: Camden
A27: Alabama | B27: Crenshaw | D27: South Carolina | E27: Florence | G27: Florida | H27: Glades | J27: Georgia | K27: Candler
A28: Alabama | B28: Cullman | D28: South Carolina | E28: Georgetown | G28: Florida | H28: Gulf | J28: Georgia | K28: Carroll
A29: Alabama | B29: Dale | D29: South Carolina | E29: Greenville | G29: Florida | H29: Hamilton | J29: Georgia | K29: Catoosa
A30: Alabama | B30: Dallas | D30: South Carolina | E30: Greenwood | G30: Florida | H30: Hardee | J30: Georgia | K30: Charlton
A31: Alabama | B31: De Kalb | D31: South Carolina | E31: Hampton | G31: Florida | H31: Hendry | J31: Georgia | K31: Chatham
A32: Alabama | B32: Elmore | D32: South Carolina | E32: Horry | G32: Florida | H32: Hernando | J32: Georgia | K32: Chattahoochee
A33: Alabama | B33: Escambia | D33: South Carolina | E33: Jasper | G33: Florida | H33: Highlands | J33: Georgia | K33: Chattooga
A34: Alabama | B34: Etowah | D34: South Carolina | E34: Kershaw | G34: Florida | H34: Hillsborough | J34: Georgia | K34: Cherokee
A35: Alabama | B35: Fayette | D35: South Carolina | E35: Lancaster | G35: Florida | H35: Holmes | J35: Georgia | K35: Clarke
A36: Alabama | B36: Franklin | D36: South Carolina | E36: Laurens | G36: Florida | H36: Indian River | J36: Georgia | K36: Clay
A37: Alabama | B37: Geneva | D37: South Carolina | E37: Lee | G37: Florida | H37: Jackson | J37: Georgia | K37: Clayton
A38: Alabama | B38: Greene | D38: South Carolina | E38: Lexington | G38: Florida | H38: Jefferson | J38: Georgia | K38: Clinch
A39: Alabama | B39: Hale | D39: South Carolina | E39: Marion | G39: Florida | H39: Lafayette | J39: Georgia | K39: Cobb
A40: Alabama | B40: Henry | D40: South Carolina | E40: Marlboro | G40: Florida | H40: Lake | J40: Georgia | K40: Coffee
A41: Alabama | B41: Houston | D41: South Carolina | E41: Mccormick | G41: Florida | H41: Lee | J41: Georgia | K41: Colquitt
A42: Alabama | B42: Jackson | D42: South Carolina | E42: Newberry | G42: Florida | H42: Leon | J42: Georgia | K42: Columbia
A43: Alabama | B43: Jefferson | D43: South Carolina | E43: Oconee | G43: Florida | H43: Levy | J43: Georgia | K43: Cook
A44: Alabama | B44: Lamar | D44: South Carolina | E44: Orangeburg | G44: Florida | H44: Liberty | J44: Georgia | K44: Coweta
A45: Alabama | B45: Lauderdale | D45: South Carolina | E45: Pickens | G45: Florida | H45: Madison | J45: Georgia | K45: Crawford
A46: Alabama | B46: Lawrence | D46: South Carolina | E46: Richland | G46: Florida | H46: Manatee | J46: Georgia | K46: Crisp
A47: Alabama | B47: Lee | D47: South Carolina | E47: Saluda | G47: Florida | H47: Marion | J47: Georgia | K47: Dade
A48: Alabama | B48: Limestone | D48: South Carolina | E48: Spartanburg | G48: Florida | H48: Martin | J48: Georgia | K48: Dawson
A49: Alabama | B49: Lowndes | D49: South Carolina | E49: Sumter | G49: Florida | H49: Miami-dade | J49: Georgia | K49: Decatur
A50: Alabama | B50: Macon | D50: South Carolina | E50: Union | G50: Florida | H50: Monroe | J50: Georgia | K50: Dekalb
A51: Alabama | B51: Madison | D51: South Carolina | E51: Williamsburg | G51: Florida | H51: Nassau | J51: Georgia | K51: Dodge
A52: Alabama | B52: Marengo | D52: South Carolina | E52: York | G52: Florida | H52: Okaloosa | J52: Georgia | K52: Dooly
A53: Alabama | B53: Marion | G53: Florida | H53: Okeechobee | J53: Georgia | K53: Dougherty
A54: Alabama | B54: Marshall | G54: Florida | H54: Orange | J54: Georgia | K54: Douglas
A55: Alabama | B55: Mobile | G55: Florida | H55: Osceola | J55: Georgia | K55: Early
A56: Alabama | B56: Monroe | G56: Florida | H56: Palm Beach | J56: Georgia | K56: Echols
A57: Alabama | B57: Montgomery | G57: Florida | H57: Pasco | J57: Georgia | K57: Effingham
A58: Alabama | B58: Morgan | G58: Florida | H58: Pinellas | J58: Georgia | K58: Elbert
A59: Alabama | B59: Perry | G59: Florida | H59: Polk | J59: Georgia | K59: Emanuel
A60: Alabama | B60: Pickens | G60: Florida | H60: Putnam | J60: Georgia | K60: Evans
A61: Alabama | B61: Pike | G61: Florida | H61: Saint Johns | J61: Georgia | K61: Fannin
A62: Alabama | B62: Randolph | G62: Florida | H62: Saint Lucie | J62: Georgia | K62: Fayette
A63: Alabama | B63: Russell | G63: Florida | H63: Santa Rosa | J63: Georgia | K63: Floyd
A64: Alabama | B64: Saint Clair | G64: Florida | H64: Sarasota | J64: Georgia | K64: Forsyth
A65: Alabama | B65: Shelby | G65: Florida | H65: Seminole | J65: Georgia | K65: Franklin
A66: Alabama | B66: Sumter | G66: Florida | H66: Sumter | J66: Georgia | K66: Fulton
A67: Alabama | B67: Talladega | G67: Florida | H67: Suwannee | J67: Georgia | K67: Gilmer
A68: Alabama | B68: Tallapoosa | G68: Florida | H68: Taylor | J68: Georgia | K68: Glascock
A69: Alabama | B69: Tuscaloosa | G69: Florida | H69: Union | J69: Georgia | K69: Glynn
A70: Alabama | B70: Walker | G70: Florida | H70: Volusia | J70: Georgia | K70: Gordon
A71: Alabama | B71: Washington | G71: Florida | H71: Wakulla | J71: Georgia | K71: Grady
A72: Alabama | B72: Wilcox | G72: Florida | H72: Walton | J72: Georgia | K72: Greene
A73: Alabama | B73: Winston | G73: Florida | H73: Washington | J73: Georgia | K73: Gwinnett
J74: Georgia | K74: Habersham
J75: Georgia | K75: Hall
J76: Georgia | K76: Hancock
J77: Georgia | K77: Haralson
J78: Georgia | K78: Harris
J79: Georgia | K79: Hart
J80: Georgia | K80: Heard
J81: Georgia | K81: Henry
J82: Georgia | K82: Houston
J83: Georgia | K83: Irwin
J84: Georgia | K84: Jackson
J85: Georgia | K85: Jasper
J86: Georgia | K86: Jeff Davis
J87: Georgia | K87: Jefferson
J88: Georgia | K88: Jenkins
J89: Georgia | K89: Johnson
J90: Georgia | K90: Jones
J91: Georgia | K91: Lamar
J92: Georgia | K92: Lanier
J93: Georgia | K93: Laurens
J94: Georgia | K94: Lee
J95: Georgia | K95: Liberty
J96: Georgia | K96: Lincoln
J97: Georgia | K97: Long
J98: Georgia | K98: Lowndes
J99: Georgia | K99: Lumpkin
J100: Georgia | K100: Macon
J101: Georgia | K101: Madison
J102: Georgia | K102: Marion
J103: Georgia | K103: Mcduffie
J104: Georgia | K104: Mcintosh
J105: Georgia | K105: Meriwether
J106: Georgia | K106: Miller
J107: Georgia | K107: Mitchell
J108: Georgia | K108: Monroe
J109: Georgia | K109: Montgomery
J110: Georgia | K110: Morgan
J111: Georgia | K111: Murray
J112: Georgia | K112: Muscogee
J113: Georgia | K113: Newton
J114: Georgia | K114: Oconee
J115: Georgia | K115: Oglethorpe
J116: Georgia | K116: Paulding
J117: Georgia | K117: Peach
J118: Georgia | K118: Pickens
J119: Georgia | K119: Pierce
J120: Georgia | K120: Pike
J121: Georgia | K121: Polk
J122: Georgia | K122: Pulaski
J123: Georgia | K123: Putnam
J124: Georgia | K124: Quitman
J125: Georgia | K125: Rabun
J126: Georgia | K126: Randolph
J127: Georgia | K127: Richmond
J128: Georgia | K128: Rockdale
J129: Georgia | K129: Schley
J130: Georgia | K130: Screven
J131: Georgia | K131: Seminole
J132: Georgia | K132: Spalding
J133: Georgia | K133: Stephens
J134: Georgia | K134: Stewart
J135: Georgia | K135: Sumter
J136: Georgia | K136: Talbot
J137: Georgia | K137: Taliaferro
J138: Georgia | K138: Tattnall
J139: Georgia | K139: Taylor
J140: Georgia | K140: Telfair
J141: Georgia | K141: Terrell
J142: Georgia | K142: Thomas
J143: Georgia | K143: Tift
J144: Georgia | K144: Toombs
J145: Georgia | K145: Towns
J146: Georgia | K146: Treutlen
J147: Georgia | K147: Troup
J148: Georgia | K148: Turner
J149: Georgia | K149: Twiggs
J150: Georgia | K150: Union
J151: Georgia | K151: Upson
J152: Georgia | K152: Walker
J153: Georgia | K153: Walton
J154: Georgia | K154: Ware
J155: Georgia | K155: Warren
J156: Georgia | K156: Washington
J157: Georgia | K157: Wayne
J158: Georgia | K158: Webster
J159: Georgia | K159: Wheeler
J160: Georgia | K160: White
J161: Georgia | K161: Whitfield
J162: Georgia | K162: Wilcox
J163: Georgia | K163: Wilkes
J164: Georgia | K164: Wilkinson
J165: Georgia | K165: Worth

Sheet Builders Risk Validations (hidden)
A1: SOUTHERN INSURANCE UNDERWRITERS
A2: BUILDER'S RISK RATING & APPLICATION TOOL
A3: VALIDATIONS
A5: DO NOT CHANGE EDIT NUMBERS
A6: THEY ARE ASSOCIATED WITH A NAMED FIELD
A8: TOTAL EDITS TRIGGERED | D8: =SUM(A14:A24) -> 0
A9: TOTAL EDITS BLOCKING RATE | D9: =COUNTIFS(Table2[Triggered],1,Table2[Allow Rate],"N",Table2[UW Override],"No") -> 0
A13: Triggered | B13: Edit Num | C13: Field | D13: Description | E13: Allow Rate | F13: UW Override
A14: =IF(SELECTED_STRUCTUREAGE>=7,1,0) -> 0 | B14: 1 | C14: Age of Structure | D14: Structures older than 75 years, can not be rated on this tool. Please refer to Underwriting | E14: N | F14: =IF(Selected_UWOverride=1,"No","Overridden") -> No
A15: =IF(AND(Selected_StructuralorFoundationWork=1,SELECTED_PROJTYPE=1),1,0) -> 0 | B15: 2 | C15: Foundation | D15: Projects where work has begun past the foundation can not be rated on this tool. Please refer to Underwriting | E15: N | F15: No
A16: =IF(AND(Selected_StructuralorFoundationWork=1,SELECTED_PROJTYPE<>1),1,0) -> 0 | B16: 3 | C16: Structural Work | D16: Projects that include structural work can not be rated on this tool. Please refer to Underwriting | E16: N | F16: No
A17: =IF(Selected_Contractor=2,1,0) -> 0 | B17: 4 | C17: Contractor | D17: Projects not being managed by a licensed contractor can not be rated on this tool. Please refer to Underwriting | E17: N | F17: No
A18: =IF(AND(Selected_ConstructionValue>500000,OR(SELECTED_CONSTRUCTION=1,SELECTED_CONSTRUCTION=3)),1,0) -> 0 | B18: 5 | C18: Const Value | D18: Frame & Joisted Masonry with Construction Value > $500k can not be rated on this tool. Please refer to Underwriting | E18: N | F18: No
A19: =IF(Selected_ConstructionValue=0,0,IF(AND(SELECTED_OCCUPANCY=1,VLOOKUP(SELECTED_OCCUPANCY,'Builders Risk Input'!$A$55:$C$56,3,0)>'Builders Risk Rater'!$K$21),1,0)) -> 0 | B19: 6 | C19: Square Feet | D19: Project Value/Sq Feet does not meet minium. UW Review Required. ($125/ft Residential) | E19: n | F19: No
A20: =IF(Selected_ConstructionValue=0,0,IF(AND(SELECTED_OCCUPANCY=2,VLOOKUP(SELECTED_OCCUPANCY,'Builders Risk Input'!$A$55:$C$56,3,0)>'Builders Risk Rater'!$K$21),1,0)) -> 0 | B20: 7 | C20: Square Feet | D20: Project Value/Sq Feet does not meet minium. UW Review Required. ($150/ft Commercial) | E20: n | F20: No
A21: =IF(SELECTED_PC>=9,1,0) -> 0 | B21: 8 | C21: Protection Class | D21: PC 9-10 are can not be rated on this tool. Please refer to Underwriting | E21: N | F21: No
A22: =IF(AND(Selected_ConstructionValue>1000000,SELECTED_CONSTRUCTION<>1,SELECTED_CONSTRUCTION<>3),1,0) -> 0 | B22: 9 | C22: Const Value | D22: Construction value exceeds maximum allowable limit for this program ($1M). Can not be rated on this tool. Please refer to Underwriting | E22: N | F22: No
A23: =IF(AND(SELECTED_PROJTYPE=1,SELECTED_STRUCTUREAGE<>1),1,0) -> 0 | B23: 10 | C23: Age of Structure | D23: Projected Type = 'New Construction' and selected Structure Age > 0. Please confirm entry. | E23: n | F23: =IF(Selected_UWOverride=1,"No","Overridden") -> No
A24: =IF(Selected_TerritoryRatingCode="Decline",1,0) -> 0 | B24: 11 | C24: Territory | D24: Southern Insurance Underwrites is currently not writing exposure in this zip code | E24: N | F24: No

Sheet Property Logic (hidden)
N1: FINAL RATE | U1: FINAL MR
C2: Output | D2: Rate | G2: Base Rate | H2: Modified Base Rate Rate | I2: Final Modified Rate | J2: Premium | K2: Pro Rate Premium | L2: Short Rate Premium | O2: Wind Yes or no? | P2: Yes | Q2: Yes | R2: =IF('Property Rater'!D15="Yes",'Property Logic'!Q2,IF('Property Rater'!D15="No",'Property Logic'!Q3)) -> Yes | S2: =C18 -> 0.6 | V2: Roof Age | W2: =YEAR(TODAY()) -'Property Rater'!D27 -> 8 | X2: =IF('Property Logic'!W2<W3,X3,IF(AND('Property Logic'!W2>=W3,'Property Logic'!W2<=W4),X4,IF(AND('Property Logic'!W2>=W4,'Property Logic'!W2<=W5),X5,IF(AND('Property Logic'!W2>=W5,'Property Logic'!W2<=W6),X6,IF(AND('Property Logic'!W2>=W6,'Property Logic'!W2<=W7),X7))))) -> 0.98 | Y2: Changed on 2/21/2021
B3: Building | C3: =IF('Property Rater'!I3="x",D3) -> 0.9 | D3: =K11 -> 0.9 | F3: Building | G3: =C3*(IF(R2="No",C47,IF(R2="Yes",C18))) -> 0.54 | H3: =(IF(R2="No",C10,IF(R2="Yes",C18)))*R26*K11*Q35*C3 -> 0.47385 | I3: =IF(K29> 0.8,(H3*O12*Q20*X2*X9*X16*X22*X28*X46*X54*X60*X66*X72*Y76*Y79*X84*X91*X98*Z105*Z116),0.8) -> 0.466443605 | J3: =('Property Rater'!J3/100)*I3 -> 4664.43605 | K3: =J3*K20 -> 4651.656773 | L3: =J3*$K$21 -> 5116.82245 | P3: No | Q3: No | R3: =IF('Property Rater'!D15='Property Logic'!P2,'Property Logic'!S2,IF('Property Rater'!#REF!='Property Logic'!P3,'Property Logic'!S3)) -> 0.6 | S3: =C10 -> 0.23 | V3: Less or equal to 5 years | W3: 5 | X3: 0.95
B4: BPP | C4: =IF('Property Rater'!I4="x",D4) -> 0.9 | D4: =K11 -> 0.9 | F4: BPP | G4: =C4*(IF(R2="No",C47,IF(R2="Yes",C18))) -> 0.54 | H4: =(IF(R2="No",C10,IF(R2="Yes",C18)))*R26*K11*Q35*C4 -> 0.47385 | I4: =IF(K30> 0.8,H4*O12*Q20*X2*X9*X16*X22*X28*X46*X54*X60*X66*X72*Y76*Y79*X84*X91*X98*Z105*Z116,0.8) -> 0.466443605 | J4: =('Property Rater'!J4/100)*I4 -> 0.00466443605 | K4: =J4*K20 -> 0.004651656773 | L4: =J4*$K$21 -> 0.00511682245 | V4: Less or equal to 10 years and more that 5 years | W4: 10 | X4: 0.98
B5: BI | C5: =IF('Property Rater'!I5="x",D5) -> 0.9 | D5: =K11 -> 0.9 | F5: BI | G5: =C5*(IF(R2="No",C47,IF(R2="Yes",C18))) -> 0.54 | H5: =(IF(R2="No",C10,IF(R2="Yes",C18)))*R26*K11*Q35*C6 -> 0.47385 | I5: =IF(K31> 0.8,H5*O12*Q20*X2*X9*X16*X22*X28*X46*X54*X60*X66*X72*Y76*Y79*X84*X91*X98*Z105*Z116,0.8) -> 0.466443605 | J5: =('Property Rater'!J5/100)*I5 -> 233.2218025 | K5: =J5*K20 -> 232.5828386 | L5: =J5*$K$21 -> 255.8411225 | O5: Year Built – Rate Modifier | R5: Age Limit | S5: Credit | T5: Changed on 3/10/21 | V5: Less or equal to 15 years and more that 10 years | W5: 15 | X5: 1
B6: Stock | C6: =IF('Property Rater'!I6="x",D6) -> 0.9 | D6: =K11 -> 0.9 | F6: Stock | G6: =C6*(IF(R2="No",C47,IF(R2="Yes",C18))) -> 0.54 | H6: =(IF(R2="No",C10,IF(R2="Yes",C18)))*R26*K11*Q35*C6 -> 0.47385 | I6: =IF(K32> 0.8,H6*O12*Q20*X2*X9*X16*X22*X28*X46*X54*X60*X66*X72*Y76*Y79*X84*X91*X98*Z105*Z116,0.8) -> 0.466443605 | J6: =('Property Rater'!J6/100)*I6 -> 932.8872099 | K6: =J6*K20 -> 930.3313545 | L6: =J6*$K$21 -> 1023.36449 | O6: Less or equal to 10 years | Q6: 10% Credit | R6: 10 | S6: 0.9 | V6: Less or equal to 20years and more that 15 years | W6: 20 | X6: 1.02
B7: open | C7: =IF('Property Rater'!I7="x",D7) -> FALSE | D7: 1 | F7: open | O7: Less or equal to 15 years and more that 10 years | R7: 15 | S7: 1 | V7: More than 20 years | W7: 10000 | X7: 1.05
O8: Less or equal to 25 years and more that 15 years | Q8: 5% Debit | R8: 25 | S8: 1.05
O9: Less or equal to 40 years and more that 25 years | Q9: 10% Debit | R9: 40 | S9: 1.1 | V9: Updates to Structure | W9: =YEAR(TODAY()) -'Property Rater'!D35 -> 23 | X9: 1 | Y9: Changed on 02/05/2021
B10: X wind rate | C10: =IF('Property Rater'!D21="Masonry Non Combustible", IF('Property Rater'!J10="LOW", F13, IF('Property Rater'!J10="Medium", F15, IF('Property Rater'!J10="High", F15, 0))), IF('Property Rater'!D21="Frame", IF('Property Rater'!J10="LOW", C13, IF('Property Rater'!J10="Medium", C15, IF('Property Rater'!J10="High", C15, 0))), IF('Property Rater'!D21="Non Combustible", IF('Property Rater'!J10="LOW", D13, IF('Property Rater'!J10="Medium", D15, IF('Property Rater'!J10="High", D15, 0))), IF('Property Rater'!D21="Joint Masonry", IF('Property Rater'!J10="LOW", E13, IF('Property Rater'!J10="Medium", E15, IF('Property Rater'!J10="High",E15, 0))), IF('Property Rater'!D21="Fire Resistive", IF('Property Rater'!J10="LOW", G13, IF('Property Rater'!J10="Medium", G15, IF('Property Rater'!J10="High",G15, 0))), IF('Property Rater'!D21="Light Metal Frame", IF('Property Rater'!J10="LOW", H13, IF('Property Rater'!J10="Medium", H15, IF('Property Rater'!J10="High",H15, 0))), 0)))))) -> 0.23 | O10: Less or equal to 50 years and more that 40 years | Q10: 15% Debit | R10: 50 | S10: 1.15 | V10: Less or equal to 5 years | W10: 5 | X10: 1
B11: Occupancy base X-WINDRATES apply to entire state | J11: Occupany Rating | K11: =VLOOKUP('Property Rater'!J10,'Property Logic'!J12:K14,2,FALSE) -> 0.9 | L11: BPP Rating Factor2 | M11: =VLOOKUP('Property Rater'!G33,'Property Logic'!L12:M14,2,FALSE) -> 1 | O11: More than 50 years | Q11: 20% Debit | R11: 10000 | S11: 1.2 | V11: Less or equal to 10 years and more that 5 years | W11: 10 | X11: 1
B12: Project Details | C12: Frame | D12: Non Combustible | E12: Joint Masonry | F12: Masonry Non Combustible | G12: Fire Resistive | H12: Light Metal Frame | J12: Low | K12: 0.9 | L12: Low | M12: 1 | O12: =IF('Property Rater'!J12<R6,S6,IF(AND('Property Rater'!J12>=R6,'Property Rater'!J12<=R7),S7,IF(AND('Property Rater'!J12>=R7,'Property Rater'!J12<=R8),S8,IF(AND('Property Rater'!J12>=R8,'Property Rater'!J12<=R9),S9,IF(AND('Property Rater'!J12>=R9,'Property Rater'!J12<=R10),S10,IF('Property Rater'!J12>R11,S11)))))) -> 1.1 | V12: Less or equal to 15 years and more that 10 years | W12: 15 | X12: 1
B13: Low | C13: 0.38 | D13: 0.35 | E13: 0.31 | F13: 0.26 | G13: 0.23 | H13: 0.38 | J13: Medium | K13: 1 | L13: Medium | M13: 1 | V13: Less or equal to 20years and more that 15 years | W13: 20 | X13: 1
J14: High | K14: 1.15 | L14: High | M14: 1 | O14: PC Class | V14: More than 20 years | W14: 10000 | X14: 1
B15: Medium | C15: 0.44 | D15: 0.4 | E15: 0.37 | F15: 0.32 | G15: 0.29 | H15: 0.44 | J15: BI Rating Factor | K15: =VLOOKUP('Property Rater'!G35,'Property Logic'!J16:K18,2,FALSE) -> 1 | L15: Stock Rating Factor | M15: =VLOOKUP('Property Rater'!G37,'Property Logic'!L16:M18,2,FALSE) -> 1 | O15: 1 | P15: 0.98 | Q15: Changed 2/21/2021
J16: Low | K16: 1 | L16: Low | M16: 1 | O16: 2 | P16: 0.98 | V16: Sprinkler | X16: =VLOOKUP('Property Rater'!G17,'Property Logic'!V17:X18,3,FALSE) -> 1
B17: High/Vacant | C17: 0.52 | D17: 0.48 | E17: 0.45 | F17: 0.4 | G17: 0.37 | H17: 0.52 | J17: Medium | K17: 1 | L17: Medium | M17: 1 | O17: 3 | P17: 0.99 | V17: Yes | X17: 0.97
B18: Wind rate | C18: =VLOOKUP('Property Rater'!J8,B21:H46,MATCH('Property Rater'!D21,B20:H20,0),0) -> 0.6 | J18: High | K18: 1 | L18: High | M18: 1 | O18: 4 | P18: 0.99 | V18: No | X18: 1
B19: Occupancy base WINDRATES apply to entire state | O19: 5 | P19: 1
B20: Project details | C20: Frame | D20: Non Combustible | E20: Joint Masonry | F20: Masonry Non Combustible | G20: Fire Resistive | H20: Light Metal Frame | J20: Policy Term Prorated Ratio | K20: =(('Property Rater'!E5-'Property Rater'!D5)-1)/365 -> 0.997260274 | O20: 6 | P20: 1 | Q20: =IF('Property Rater'!G9<=4,'Property Logic'!P18,IF('Property Rater'!G9<=6,'Property Logic'!P20,IF('Property Rater'!G9<=8,P22,P24))) -> 1
B21: FLZN1 | C21: EXCLUDED | D21: EXCLUDED | E21: 0.94 | F21: 0.94 | G21: 0.79 | H21: 0 | J21: Short Rate Ratio | K21: =((('Property Rater'!E5-'Property Rater'!D5)-1)/365)*1.1 -> 1.096986301 | O21: 7 | P21: 1.02
B22: FLZN2 | C22: 0.89 | D22: 0.84 | E22: 0.74 | F22: 0.59 | G22: 0.54 | H22: =C22 -> 0.89 | J22: Minimum Earned Premium | K22: =(('Property Rater'!E5-'Property Rater'!D5)-1)/365 -> 0.997260274 | O22: 8 | P22: 1.02 | V22: Loss Free 3 | X22: =VLOOKUP('Property Rater'!G19,'Property Logic'!V23:X24,3,FALSE) -> 0.98
B23: FLZN3 | C23: 0.89 | D23: 0.84 | E23: 0.74 | F23: 0.59 | G23: 0.54 | H23: 0.89 | O23: 9 | P23: Submit | V23: Yes | X23: 0.98
B24: FLZN4 | C24: 0.9 | D24: 0.86 | E24: 0.75 | F24: 0.6 | G24: 0.55 | H24: 0.9 | J24: Valuation | K24: Actual Cash Value | L24: 1 | M24: =VLOOKUP('Property Rater'!G5,'Property Logic'!K24:L25,2,FALSE) -> 1 | O24: 10 | P24: Submit | V24: No | X24: 1
B25: FLZN5 | C25: 0.85 | D25: 0.75 | E25: 0.68 | F25: 0.54 | G25: 0.45 | H25: 0.85 | K25: Replacement Cost | L25: 1
B26: FLZN6 | C26: 0.87 | D26: 0.78 | E26: 0.7 | F26: 0.58 | G26: 0.48 | H26: 0.87 | O26: Distance to Ocean | R26: =VLOOKUP('Property Rater'!G11,'Property Logic'!O28:Q34,3,FALSE) -> 1
B27: FLZN7 | C27: 0.85 | D27: 0.75 | E27: 0.68 | F27: 0.54 | G27: 0.45 | H27: 0.85 | O27: Rate Modifier all other zones
B28: FLZN8 | C28: 0.87 | D28: 0.77 | E28: 0.7 | F28: 0.57 | G28: 0.47 | H28: 0.87 | K28: Final Modifier | L28: added 3/22/21 | O28: Less than 1 mile | Q28: 1.15 | R28: Changed on 3/9/21 | V28: Package Credit | X28: =VLOOKUP('Property Rater'!G29,'Property Logic'!V29:X30,3,FALSE) -> 0.98
B29: GAZN1 | C29: 0.7 | D29: 0.68 | E29: 0.65 | F29: 0.62 | G29: 0.6 | H29: 0 | J29: Building | K29: =IF(H3=0, 0,((H3*O12*Q20*X2*X9*X16*X22*X28*X46*X54*X60*X66*X72*Y76*Y79*X84*X91*X98*Z105*Z116))/H3) -> 0.9843697477 | O29: 1 mile to less than 2 miles | P29: 15 % Debit | Q29: 1.15 | V29: Yes | X29: 0.98
B30: GAZN2 | C30: 0.65 | D30: 0.63 | E30: 0.6 | F30: 0.58 | G30: 0.55 | H30: 0 | J30: BPP | K30: =IF(H4=0,0,(H4*O12*Q20*X2*X9*X16*X22*X28*X46*X54*X60*X66*X72*Y76*Y79*X84*X91*X98*Z105*Z116)/H4) -> 0.9843697477 | O30: 2 mile to less than 5 miles | P30: 10% Debit | Q30: 1.1 | V30: No | X30: 1
B31: GAZN3 | C31: 0.6 | D31: 0.58 | E31: 0.55 | F31: 0.52 | G31: 0.5 | H31: 0 | J31: BI | K31: =IF(H5=0,0,(H5*O12*Q20*X2*X9*X16*X22*X28*X46*X54*X60*X66*X72*Y76*Y79*X84*X91*X98*Z105*Z116)/H5) -> 0.9843697477 | O31: 5 mile to less than 10 miles | P31: 5 %Debit | Q31: 1.1
B32: GAZN4 | C32: 0 | D32: 0 | E32: 0 | F32: 0 | G32: 0 | H32: 0 | J32: Stock | K32: =IF(H6=0,0,(H6*O12*Q20*X2*X9*X16*X22*X28*X46*X54*X60*X66*X72*Y76*Y79*X84*X91*X98*Z105*Z116)/H6) -> 0.9843697477 | O32: 10 mile to less than 20 miles | Q32: 1
B33: GAZN5 | C33: 0 | D33: 0 | E33: 0 | F33: 0 | G33: 0 | H33: 0 | O33: 20 m1les to less than 25 miles | P33: 5% Credit | Q33: 0.95
B34: GAROS | C34: 0.55 | D34: 0.53 | E34: 0.5 | F34: 0.48 | G34: 0.45 | H34: 0 | O34: 25 m1les or more | Q34: 1 | V34: Open | X34: =VLOOKUP('Property Rater'!#REF!,'Property Logic'!V35:X36,2,FALSE) -> 
B35: ALZN1 | C35: 0.95 | D35: 0.92 | E35: 0.9 | F35: 0.88 | G35: 0.85 | H35: 0 | O35: AOP DED Credit | Q35: =VLOOKUP('Property Rater'!G13,'Property Logic'!O36:P38,2,FALSE) -> 0.975 | R35: Changed 2/5/2021 | V35: Yes | X35: 0.95
B36: ALZN2 | C36: 0.85 | D36: 0.82 | E36: 0.8 | F36: 0.78 | G36: 0.75 | H36: 0 | O36: No | P36: 1 | V36: No | X36: 1
B37: ALZN3 | C37: 0.85 | D37: 0.82 | E37: 0.8 | F37: 0.78 | G37: 0.75 | H37: 0 | O37: 2500 | P37: 0.975
B38: ANZN4 | C38: 0 | D38: 0 | E38: 0 | F38: 0 | G38: 0 | H38: 0 | O38: 5000 | P38: 0.95
B39: ALZN5 | C39: 0 | D39: 0 | E39: 0 | F39: 0 | G39: 0 | H39: 0
B40: ALROS | C40: 0.7 | D40: 0.68 | E40: 0.65 | F40: 0.63 | G40: 0.6 | H40: 0 | V40: Open | X40: =VLOOKUP('Property Rater'!#REF!,'Property Logic'!V41:X42,2,FALSE) -> 
B41: SCZN1 | C41: 0.75 | D41: 0.73 | E41: 0.7 | F41: 0.68 | G41: 0.65 | H41: 0 | V41: Yes | X41: 0.95
B42: SCZN2 | C42: 0.65 | D42: 0.63 | E42: 0.6 | F42: 0.58 | G42: 0.55 | H42: 0 | O42: Wind ded | Q42: =IF(E74="Yes",VLOOKUP('Property Rater'!G15,'Property Logic'!O43:P47,2,FALSE),1) -> 1 | V42: No | X42: 1
B43: SCZN3 | C43: 0.6 | D43: 0.58 | E43: 0.55 | F43: 0.52 | G43: 0.5 | H43: 0 | O43: No | P43: 1
B44: SCROS | C44: 0.55 | D44: 0.53 | E44: 0.5 | F44: 0.48 | G44: 0.45 | H44: 0 | O44: 0.01 | P44: =0.01*(SUM('Property Rater'!J3:J6)) -> 12500.01
B45: TXZN | C45: 0 | D45: 0 | E45: 0 | F45: 0 | G45: 0 | H45: 0 | O45: 0.02 | P45: =0.02*(SUM('Property Rater'!J3:J6)) -> 25000.02
B46: MSZN | C46: 0 | D46: 0 | E46: 0 | F46: 0 | G46: 0 | H46: 0 | O46: 0.05 | P46: =0.05*(SUM('Property Rater'!J3:J6)) -> 62500.05 | V46: Roof Material | W46: =VLOOKUP('Property Rater'!D25,'Property Logic'!V47:W52,2,FALSE) -> 1 | X46: =VLOOKUP('Property Rater'!D25,'Property Logic'!V47:X52,2,FALSE) -> 1
B47: Base Rate Calc x wind | C47: =VLOOKUP('Property Rater'!D21,B49:C54,2,FALSE) -> 0.29 | O47: 0.07 | P47: =0.07*(SUM('Property Rater'!J3:J6)) -> 87500.07 | V47: Material1 | W47: 1 | X47: 1
B48: Medium Value | C48: Base Rate Calc | V48: Material2 | W48: 1 | X48: 1
B49: Frame | C49: =C15 -> 0.44 | V49: Material3 | W49: 1 | X49: 1
B50: Non Combustible | C50: =D15 -> 0.4 | V50: Material4 | W50: 1 | X50: 1
B51: Joint Masonry | C51: =E15 -> 0.37 | V51: Material5 | W51: 1 | X51: 1
B52: Masonry Non Combustible | C52: =F15 -> 0.32 | V52: Materail6 | W52: 1 | X52: 1
B53: Fire Resistive | C53: =G15 -> 0.29
B54: Light Metal Frame | C54: =H15 -> 0.44 | V54: Aluminum Wiring | X54: =VLOOKUP('Property Rater'!G27,'Property Logic'!V55:X58,3,FALSE) -> 1
V55: Yes | X55: 0
V56: No | X56: 1
B57: Stone | C57: 1 | D57: Exterior Cladding Value | E57: =IFERROR(VLOOKUP('Property Rater'!D23,'Property Logic'!B57:C63,2,FALSE),"") -> 1
B58: Wood/ Timber | C58: 1
B59: Weatherboard | C59: 1
B60: Fiber Cement | C60: 1 | V60: Wind Resistive | X60: =VLOOKUP('Property Rater'!G25,'Property Logic'!V61:X62,3,FALSE) -> 1
B61: Brick | C61: 1 | V61: Yes | X61: 1
B62: Vinyl Cladding | C62: 1 | V62: No | X62: 1
B63: Metal | C63: 1
V66: Fire Protection | X66: =VLOOKUP('Property Rater'!G23,'Property Logic'!V67:X68,3,FALSE) -> 1
V67: Yes | X67: 1
V68: No | X68: 1
V72: Building Security | X72: =VLOOKUP('Property Rater'!G21,'Property Logic'!V73:X74,3,FALSE) -> 1
V73: Yes | X73: 1
V74: No | X74: 1
Y76: =VLOOKUP('Property Rater'!G19,'Property Logic'!X77:Y78,2,FALSE) -> 0.98
X77: Yes | Y77: 0.98
V78: Coverage type
V79: Special | X79: 1 | Y79: =VLOOKUP('Property Rater'!G7,'Property Logic'!V79:X82,3,FALSE) -> 1
V80: Special x Theft | X80: 1 | Y80: =VLOOKUP('Property Rater'!G7,'Property Logic'!V79:X82,1,FALSE) -> Special
V81: Broad | X81: 1
V82: Basic | X82: 1
V84: Electrical Age | W84: =YEAR(TODAY()) -'Property Rater'!D29 -> 8 | X84: =IF('Property Logic'!W84<W85,X85,IF(AND('Property Logic'!W84>=W85,'Property Logic'!W84<=W86),X86,IF(AND('Property Logic'!W84>=W86,'Property Logic'!W84<=W87),X87,IF(AND('Property Logic'!W84>=W87,'Property Logic'!W84<=W88),X88,IF(AND('Property Logic'!W84>=W88,'Property Logic'!W84<=W89),X89))))) -> 0.99 | Y84: Changed on 2/21/2021
V85: Less or equal to 5 years | W85: 5 | X85: 0.975
V86: Less or equal to 10 years and more that 5 years | W86: 10 | X86: 0.99
V87: Less or equal to 15 years and more that 10 years | W87: 15 | X87: 1
V88: Less or equal to 20years and more that 15 years | W88: 20 | X88: 1.01
V89: More than 20 years | W89: 10000 | X89: 1.03
V91: HVAC Age | W91: =YEAR(TODAY()) -'Property Rater'!D31 -> 8 | X91: =IF('Property Logic'!W91<W92,X92,IF(AND('Property Logic'!W91>=W92,'Property Logic'!W91<=W93),X93,IF(AND('Property Logic'!W91>=W93,'Property Logic'!W91<=W94),X94,IF(AND('Property Logic'!W91>=W94,'Property Logic'!W91<=W95),X95,IF(AND('Property Logic'!W91>=W95,'Property Logic'!W91<=W96),X96))))) -> 1 | Y91: Changed on 2/5/2021
V92: Less or equal to 5 years | W92: 5 | X92: 1
V93: Less or equal to 10 years and more that 5 years | W93: 10 | X93: 1
V94: Less or equal to 15 years and more that 10 years | W94: 15 | X94: 1
V95: Less or equal to 20years and more that 15 years | W95: 20 | X95: 1
V96: More than 20 years | W96: 10000 | X96: 1
V98: Plumbing age | W98: =YEAR(TODAY()) -'Property Rater'!D33 -> 8 | X98: =IF('Property Logic'!W98<W99,X99,IF(AND('Property Logic'!W98>=W99,'Property Logic'!W98<=W100),X100,IF(AND('Property Logic'!W98>=W100,'Property Logic'!W98<=W101),X101,IF(AND('Property Logic'!W98>=W101,'Property Logic'!W98<=W102),X102,IF(AND('Property Logic'!W98>=W102,'Property Logic'!W98<=W103),X103))))) -> 0.98 | Y98: Changed on 3/10/21
V99: Less or equal to 5 years | W99: 5 | X99: 0.95
V100: Less or equal to 10 years and more that 5 years | W100: 10 | X100: 0.98
V101: Less or equal to 15 years and more that 10 years | W101: 15 | X101: 1
V102: Less or equal to 20years and more that 15 years | W102: 20 | X102: 1.02
V103: More than 20 years | W103: 10000 | X103: 1.05
V105: Number of Stories | X105: 1 | Y105: 1 | Z105: =VLOOKUP('Property Rater'!D7,'Property Logic'!X105:Y110,2,FALSE) -> 1
X106: 2 | Y106: 1
X107: 3 | Y107: 1
X108: 4 | Y108: 1
X109: 5 | Y109: 1
X110: 6 or more | Y110: 1
Y111: 1
Y112: 1
Y113: 1
Y114: 1
V116: Stone | X116: 1 | Y116: Exterior Cladding Value | Z116: =IFERROR(VLOOKUP('Property Rater'!D23,'Property Logic'!V116:X122,3,FALSE),"") -> 1
V117: Wood/ Timber | X117: 1
V118: Weatherboard | X118: 1
V119: Fiber Cement | X119: 1
V120: Brick | X120: 1
V121: Vinyl Cladding | X121: 1
V122: Metal | X122: 1

Sheet Builders Risk Logic (hidden)
B1: Non-Florida | C1: Florida | D1: Selected
A2: Base Rate | B2: =J13 -> 0.32 | C2: =J43 ->  | D2: =IF('Builders Risk Rater'!J9="FL",C2,B2) -> 0.32 | I2: Project Type | J2: =VLOOKUP('Builders Risk Rating Worksheet'!C16,'Builders Risk Logic'!I3:J6,2,FALSE) -> 1 | L2: Deductible | M2: =IF('Builders Risk Rating Worksheet'!C36="Residential",VLOOKUP('Builders Risk Rating Worksheet'!C14,'Builders Risk Logic'!L3:M6,2,FALSE),VLOOKUP('Builders Risk Rating Worksheet'!C14,'Builders Risk Logic'!L7:M10,2,FALSE)) -> 1 | O2: Distance to Ocean | R2: =VLOOKUP('Builders Risk Rating Worksheet'!C24,'Builders Risk Logic'!O4:Q7,3,FALSE) -> 1.2 | T2: In ALIS
A3: Modifiers | B3: =J2*M2*R2*R14*R20*R26*R32*R38*R42 -> 1.8 | C3: =J2*M2*R2*R14*R20*R26*R32*R38*R42 -> 1.8 | D3: =IF('Builders Risk Rater'!J9="FL",C3,B3) -> 1.8 | I3: New Construction | J3: 1 | K3: Residential | L3: 500 | M3: 1 | O3: Rate Modifier all other zones
A4: FMR | B4: =B2*B3 -> 0.576 | C4: =C2*C3 ->  | D4: =IF('Builders Risk Rater'!J9="FL",C4,B4) -> 0.576 | I4: Rehabilitation | J4: 1 | L4: 1000 | M4: 0.95 | O4: Over 20 Miles | P4: no change | Q4: 1
A5: Model Home Rate | B5: =J28 -> 0.45 | C5: =J28 -> 0.45 | D5: =IF('Builders Risk Rater'!J9="FL",C5,B5) -> 0.45 | I5: Non-Structural Rehabilitation | J5: 1 | L5: 2000 | M5: 0.85 | O5: 10+ Miles to 20 Miles | P5: 5% debit | Q5: 1.05
A6: FMHR | B6: =B5*B3 -> 0.81 | C6: =B5*B3 -> 0.81 | D6: =IF('Builders Risk Rater'!J9="FL",C6,B6) -> 0.81 | I6: Remodel | J6: 1 | L6: 5000 | M6: 0.7 | O6: 2+ Miles to 10 Miles | P6: 10% debit | Q6: 1.1
K7: Commercial | L7: 500 | M7: 1 | O7: 2 Miles or Less | P7: 15% debit | Q7: 1.2
L8: 1000 | M8: 1
A9: Installation Floater Credits | L9: 2000 | M9: 0.95
A10: IRPM | B10: =R20 -> 1 | C10: =R20 -> 1 | D10: =IF('Builders Risk Rater'!J9="FL",C10,B10) -> 1 | L10: 5000 | M10: 0.9
M11: =VLOOKUP('Builders Risk Rating Worksheet'!C14,'Builders Risk Logic'!L7:M10,2,FALSE) -> 1
I12: Wind Load | J12: 1.5
I13: New Construction | J13: =VLOOKUP('Builders Risk Rating Worksheet'!C26,I16:O25,MATCH('Builders Risk Rating Worksheet'!C12,I15:O15,0),0) -> 0.32
I14: Occupancy base X-WINDRATES apply to entire state | Q14: Risk Management | R14: =VLOOKUP('Builders Risk Rating Worksheet'!C28,'Builders Risk Logic'!Q15:R18,2,FALSE) -> 1
I15: Protection Class | J15: Frame | K15: Non Combustible | L15: Joisted Masonry | M15: Masonry Non Combustible | N15: Fire Resistive | O15: Light Metal Frame | Q15: Poor | R15: 1.2
I16: 1 | J16: 0.32 | K16: 0.2 | L16: 0.15 | M16: 0.12 | N16: 0.07 | O16: =J16 -> 0.32 | Q16: Fair | R16: 1.1
I17: 2 | J17: 0.35 | K17: 0.22 | L17: 0.16 | M17: 0.125 | N17: 0.075 | O17: =J17 -> 0.35 | Q17: Good | R17: 1
I18: 3 | J18: 0.37 | K18: 0.23 | L18: 0.17 | M18: 0.13 | N18: 0.08 | O18: 0.37 | Q18: Great | R18: 1
I19: 4 | J19: 0.39 | K19: 0.24 | L19: 0.18 | M19: 0.14 | N19: 0.085 | O19: 0.39
I20: 5 | J20: 0.41 | K20: 0.25 | L20: 0.19 | M20: 0.15 | N20: 0.09 | O20: 0.41 | Q20: IRPM | R20: =VLOOKUP('Builders Risk Rating Worksheet'!C30,'Builders Risk Logic'!Q21:R24,2,FALSE) -> 1
I21: 6 | J21: 0.43 | K21: 0.26 | L21: 0.2 | M21: 0.16 | N21: 0.1 | O21: 0.43 | Q21: Poor | R21: 1.2
I22: 7 | J22: 0.44 | K22: 0.28 | L22: 0.21 | M22: 0.17 | N22: 0.11 | O22: 0.44 | Q22: Fair | R22: 1.1
I23: 8 | J23: 0.45 | K23: 0.3 | L23: 0.225 | M23: 0.18 | N23: 0.12 | O23: 0.45 | Q23: Good | R23: 1
I24: 9 | J24: 1 | K24: 1 | L24: 0.35 | M24: 0.25 | N24: 0.15 | O24: 1 | Q24: Great | R24: 1
I25: 10 | J25: 1.25 | K25: 1.25 | L25: 0.55 | M25: 0.35 | N25: 0.25 | O25: 1.25
Q26: Loss Experience | R26: =VLOOKUP('Builders Risk Rating Worksheet'!C32,'Builders Risk Logic'!Q27:R30,2,FALSE) -> 1
Q27: Poor | R27: 1.2
I28: Model Home | J28: =VLOOKUP('Builders Risk Rating Worksheet'!C26,I31:O40,MATCH('Builders Risk Rating Worksheet'!C12,I30:O30,0),0) -> 0.45 | Q28: Fair | R28: 1.1
I29: Occupancy base X-WINDRATES apply to entire state | Q29: Good | R29: 1
I30: Protection Class | J30: Frame | K30: Non Combustible | L30: Joisted Masonry | M30: Masonry Non Combustible | N30: Fire Resistive | O30: Light Metal Frame | Q30: Great | R30: 1
I31: 1 | J31: 0.45 | K31: 0.15 | L31: 0.125 | M31: 0.1 | N31: 0.07 | O31: =J31 -> 0.45
I32: 2 | J32: 0.46 | K32: 0.16 | L32: 0.13 | M32: 0.12 | N32: 0.075 | O32: =J32 -> 0.46 | Q32: Protection Security | R32: =VLOOKUP('Builders Risk Rating Worksheet'!C34,'Builders Risk Logic'!Q33:R36,2,FALSE) -> 1
I33: 3 | J33: 0.47 | K33: 0.17 | L33: 0.14 | M33: 0.13 | N33: 0.08 | O33: 0.47 | Q33: Poor | R33: 1.2
I34: 4 | J34: 0.49 | K34: 0.18 | L34: 0.15 | M34: 0.14 | N34: 0.085 | O34: 0.49 | Q34: Fair | R34: 1.1
I35: 5 | J35: 0.51 | K35: 0.19 | L35: 0.16 | M35: 0.15 | N35: 0.09 | O35: 0.51 | Q35: Good | R35: 1
I36: 6 | J36: 0.53 | K36: 0.2 | L36: 0.17 | M36: 0.16 | N36: 0.1 | O36: 0.53 | Q36: Great | R36: 1
I37: 7 | J37: 0.55 | K37: 0.21 | L37: 0.18 | M37: 0.165 | N37: 0.115 | O37: 0.55
I38: 8 | J38: 0.57 | K38: 0.22 | L38: 0.19 | M38: 0.17 | N38: 0.12 | O38: 0.57 | Q38: Residential or Commercial | R38: 1
I39: 9 | J39: 0.59 | K39: 0.24 | L39: 0.195 | M39: 0.175 | N39: 0.15 | O39: 0.59 | Q39: Residential | R39: 1
I40: 10 | J40: 0.6 | K40: 0.25 | L40: 0.2 | M40: 0.18 | N40: 0.12 | O40: 0.6 | Q40: Commercial | R40: 1
Q42: Wind Load | R42: =VLOOKUP('Builders Risk Rating Worksheet'!C38,'Builders Risk Logic'!Q43:R44,2,FALSE) -> 1.5
I43: Builders Risk - FLORIDA | J43: =VLOOKUP(IF(Selected_TerritoryRatingCode="Decline",1,Selected_TerritoryRatingCode),$I$46:$O$53,MATCH('Builders Risk Rating Worksheet'!$C$12,'Builders Risk Logic'!$I$45:$O$45,0),0) ->  | Q43: Yes | R43: =J12 -> 1.5
Q44: No | R44: 1
I45: RATING ZONES | J45: Frame | K45: Non Combustible | L45: Joisted Masonry | M45: Masonry Non Combustible | N45: Fire Resistive | O45: Light Metal Frame
I46: 1 | J46: 2.5 | K46: 2.5 | L46: 1.22 | M46: 1.09 | N46: 1.03 | O46: 2.5 | Q46: Model Home | R46: =VLOOKUP('Builders Risk Rating Worksheet'!C40,'Builders Risk Logic'!Q47:R48,2,FALSE) -> 0.45
I47: 2 | J47: 0.93 | K47: 0.88 | L47: 0.78 | M47: 0.62 | N47: 0.57 | O47: 0.93 | Q47: Yes | R47: =J28 -> 0.45
I48: 3 | J48: 0.85 | K48: 0.75 | L48: 0.68 | M48: 0.54 | N48: 0.45 | O48: 0.85 | Q48: No | R48: 1
I49: 4 | J49: 0.93 | K49: 0.88 | L49: 0.78 | M49: 0.62 | N49: 0.57 | O49: 0.93
I50: 5 | J50: 0.72 | K50: 0.68 | L50: 0.6 | M50: 0.48 | N50: 0.44 | O50: 0.72
I51: 6 | J51: 0.76 | K51: 0.72 | L51: 0.64 | M51: 0.51 | N51: 0.46 | O51: 0.76
I52: 7 | J52: 0.72 | K52: 0.68 | L52: 0.6 | M52: 0.48 | N52: 0.44 | O52: 0.72
I53: 8 | J53: 0.74 | K53: 0.7 | L53: 0.62 | M53: 0.5 | N53: 0.45 | O53: 0.74

Sheet Prop Location Tables (hidden)
A1: Zip Code | B1: State | C1: City | D1: County | E1: WindZone | F1: Rate | G1: Calc | J1: Occupancy base X-WINDRATES apply to entire state
A2: 35004 | B2: Alabama | C2: Moody | D2: Saint Clair | E2: ALZN3 | K2: Frame | L2: NC | M2: JM | N2: MNC | O2: FR
A3: 35005 | B3: Alabama | C3: Adamsville | D3: Jefferson | E3: ALROS | J3: Light Hazard | K3: 0.33 | L3: 0.3 | M3: 0.27 | N3: 0.23 | O3: 0.2
A4: 35006 | B4: Alabama | C4: Adger | D4: Jefferson | E4: ALROS | J4: Medium Hazard | K4: 0.38 | L4: 0.35 | M4: 0.32 | N4: 0.28 | O4: 0.25
A5: 35007 | B5: Alabama | C5: Alabaster | D5: Shelby | E5: ALROS | J5: High/Vacant Buildings | K5: 0.45 | L5: 0.42 | M5: 0.39 | N5: 0.35 | O5: 0.32
A6: 35010 | B6: Alabama | C6: Alexander City | D6: Tallapoosa | E6: ALROS
A7: 35011 | B7: Alabama | C7: Alexander City | D7: Tallapoosa | E7: ALROS | J7: notes 9.8.2020 | K7: BASE WIND RATE TABLE BY STATE ZONE
A8: 35013 | B8: Alabama | C8: Allgood | D8: Blount | E8: ALZN3 | K8: (Exclude All Barrier Islands for All States Except Georgia
A9: 35014 | B9: Alabama | C9: Alpine | D9: Talladega | E9: ALROS | J9: ZONE | K9: BASE RATE | L9: CONSTRUCTION | M9: RATE | N9: WIND & HAIL DEDUCTIBLES
A10: 35015 | B10: Alabama | C10: Alton | D10: Jefferson | E10: ALROS | J10: Florida Zone 1 | L10: Miami-Dade, Broward, Palm Beach, Martin, Collier
A11: 35016 | B11: Alabama | C11: Arab | D11: Marshall | E11: ALZN3 | J11: FLZN1 | L11: FRAME | M11: Excluded
A12: 35019 | B12: Alabama | C12: Baileyton | D12: Cullman | E12: ALZN3 | L12: Light Metal Frame
A13: 35020 | B13: Alabama | C13: Bessemer | D13: Jefferson | E13: ALROS | L13: NC | M13: Excluded
A14: 35021 | B14: Alabama | C14: Bessemer | D14: Jefferson | E14: ALROS | K14: 0.94 | L14: JM | M14: 0.85 - 1.10 | N14: 0-3 Miles -2- 5%
A15: 35022 | B15: Alabama | C15: Bessemer | D15: Jefferson | E15: ALROS | K15: 0.84 | L15: MNC | M15: 0.75 - 0.90 | N15: 3-10 Miles, NC/JM 2-5% - MNC or better 2-3%
A16: 35023 | B16: Alabama | C16: Bessemer | D16: Jefferson | E16: ALROS | K16: 0.79 | L16: FR | M16: 0.70 - 0.90 | N16: 5+ Miles - Frame/NC – 2-5% - JM or better -2- 3%
A17: 35031 | B17: Alabama | C17: Blountsville | D17: Blount | E17: ALZN3 | J17: Florida Zone 2 | L17: St. Lucie, Indian River, Brevard
A18: 35032 | B18: Alabama | C18: Bon Air | D18: Talladega | E18: ALROS | K18: 0.89 | L18: FRAME | M18: 0.80 - 0.95 | N18: 0-3 Miles – 2-5%
A19: 35033 | B19: Alabama | C19: Bremen | D19: Cullman | E19: ALZN3 | L19: LMF
A20: 35034 | B20: Alabama | C20: Brent | D20: Bibb | E20: ALROS | K20: 0.84 | L20: NC | M20: 0.75 - 0.90 | N20: 3-10 Miles, NC/JM2- 5% - MNC or better2- 3%
A21: 35035 | B21: Alabama | C21: Brierfield | D21: Bibb | E21: ALROS | K21: 0.74 | L21: JM | M21: 0.65 - 0.80 | N21: 10+ Miles - Frame/NC 2-5%, JM or better
A22: 35036 | B22: Alabama | C22: Brookside | D22: Jefferson | E22: ALROS | K22: 0.59 | L22: MNC | M22: 0.50 - 0.65
A23: 35038 | B23: Alabama | C23: Burnwell | D23: Walker | E23: ALZN3 | K23: 0.54 | L23: FR | M23: 0.45 - 0.55
A24: 35040 | B24: Alabama | C24: Calera | D24: Shelby | E24: ALROS
A25: 35041 | B25: Alabama | C25: Cardiff | D25: Jefferson | E25: ALROS | J25: Florida Zone 3 | L25: Hillsborough, Pinella, Manatee, Sarasota, Lee, Charlotte ,Pasco,Hernado,Citrus Levy,Dixie
A26: 35042 | B26: Alabama | C26: Centreville | D26: Bibb | E26: ALROS | K26: 0.89 | L26: FRAME | M26: 0.80 - 0.95 | O26: 0-5 Miles – 2-5%
A27: 35043 | B27: Alabama | C27: Chelsea | D27: Shelby | E27: ALROS | L27: LMF
A28: 35044 | B28: Alabama | C28: Childersburg | D28: Talladega | E28: ALROS | K28: 0.84 | L28: NC | M28: 0.75 - 0.90 | O28: 5+ Miles - Frame/NC – 2-5% - JM or better -2- 3%
A29: 35045 | B29: Alabama | C29: Clanton | D29: Chilton | E29: ALROS | K29: 0.74 | L29: JM | M29: 0.65 - 0.80
A30: 35046 | B30: Alabama | C30: Clanton | D30: Chilton | E30: ALROS | K30: 0.59 | L30: MNC | M30: 0.55 - 0.65
A31: 35048 | B31: Alabama | C31: Clay | D31: Jefferson | E31: ALROS | K31: 0.54 | L31: FR | M31: 0.50 - 0.60
A32: 35049 | B32: Alabama | C32: Cleveland | D32: Blount | E32: ALZN3 | J32: Florida Zone 4 | L32: Escambia, Santa Rosa, Okaloosa, Walton, Bay, Gulf, Franklin, Taylor, Jefferson, Wakulia
A33: 35051 | B33: Alabama | C33: Columbiana | D33: Shelby | E33: ALROS | K33: 0.9 | L33: FRAME | M33: 0.85 - 1.10 | O33: 0-3 Miles -2- 5%
A34: 35052 | B34: Alabama | C34: Cook Springs | D34: Saint Clair | E34: ALZN3 | L34: LMF
A35: 35053 | B35: Alabama | C35: Crane Hill | D35: Cullman | E35: ALZN3 | K35: 0.86 | L35: NC | M35: 0.80 - 1.10 | O35: 3-10 Miles, Frame, NC and JM 2-5% MNC or better2- 3%
A36: 35054 | B36: Alabama | C36: Cropwell | D36: Saint Clair | E36: ALZN3 | K36: 0.75 | L36: JM | M36: 0.65 - 0.80
A37: 35055 | B37: Alabama | C37: Cullman | D37: Cullman | E37: ALZN3 | K37: 0.6 | L37: MNC | M37: 0.50 - 0.65
A38: 35056 | B38: Alabama | C38: Cullman | D38: Cullman | E38: ALZN3 | K38: 0.55 | L38: FR | M38: 0.45 - 0.60
A39: 35057 | B39: Alabama | C39: Cullman | D39: Cullman | E39: ALZN3 | J39: Florida Zone 5 | L39: Marion, Lake, Seminole,Orangs, Osceola, Okeechobee, Highlands, Glades, Hendry, DeSoto, Hardee, Sumter, Polk
A40: 35058 | B40: Alabama | C40: Cullman | D40: Cullman | E40: ALZN3
A41: 35060 | B41: Alabama | C41: Docena | D41: Jefferson | E41: ALROS | K41: 0.85 | L41: FRAME | M41: 0.75 - 0.95 | O41: Frame/NC/JM – 2-3%
A42: 35061 | B42: Alabama | C42: Dolomite | D42: Jefferson | E42: ALROS | L42: LMF
A43: 35062 | B43: Alabama | C43: Dora | D43: Jefferson | E43: ALROS | K43: 0.75 | L43: NC | M43: 0.70 - 0.90 | O43: MNC or better - 2%
A44: 35063 | B44: Alabama | C44: Empire | D44: Walker | E44: ALZN3 | K44: 0.68 | L44: JM | M44: 0.54 - 0.80
A45: 35064 | B45: Alabama | C45: Fairfield | D45: Jefferson | E45: ALROS | K45: 0.54 | L45: MNC | M45: 0.42 - 0.65
A46: 35068 | B46: Alabama | C46: Fultondale | D46: Jefferson | E46: ALROS | K46: 0.45 | L46: FR | M46: 0.30 - 0.55
A47: 35070 | B47: Alabama | C47: Garden City | D47: Cullman | E47: ALZN3
A48: 35071 | B48: Alabama | C48: Gardendale | D48: Jefferson | E48: ALROS | J48: Florida Zone 6 | L48: Nassau, St John, Volusia, Duval, Flagler
A49: 35072 | B49: Alabama | C49: Goodwater | D49: Coosa | E49: ALROS | K49: 0.87 | L49: FRAME | M49: .85-1.10 | O49: Frame/NC/JM – 2-3%
A50: 35073 | B50: Alabama | C50: Graysville | D50: Jefferson | E50: ALROS | L50: LMF
A51: 35074 | B51: Alabama | C51: Green Pond | D51: Bibb | E51: ALROS | K51: 0.78 | L51: NC | M51: .80-.98
A52: 35077 | B52: Alabama | C52: Hanceville | D52: Cullman | E52: ALZN3 | K52: 0.7 | L52: JM | M52: .70-.88
A53: 35078 | B53: Alabama | C53: Harpersville | D53: Shelby | E53: ALROS | K53: 0.58 | L53: MNC | M53: .55-.78
A54: 35079 | B54: Alabama | C54: Hayden | D54: Blount | E54: ALZN3 | K54: 0.48 | L54: FR | M54: .50-.69
A55: 35080 | B55: Alabama | C55: Helena | D55: Shelby | E55: ALROS | J55: Florida | L55: Madison, Hamilton, Suwannee, Columbia, Baker, Clay, Ptnam, Alachua, Gilchrist, Lafayette, Bradford, Union
A56: 35082 | B56: Alabama | C56: Hollins | D56: Clay | E56: ALROS | J56: Zone 7
A57: 35083 | B57: Alabama | C57: Holly Pond | D57: Cullman | E57: ALZN3 | K57: 0.85 | L57: Frame LMF | M57: 0.75-0.95 | O57: Frame/NC/JM – 2-3%
A58: 35085 | B58: Alabama | C58: Jemison | D58: Chilton | E58: ALROS | K58: 0.75 | L58: NC | M58: 0.70-0.90 | O58: MNC or better - 2%
A59: 35087 | B59: Alabama | C59: Joppa | D59: Cullman | E59: ALZN3 | K59: 0.68 | L59: JM | M59: 0.54-0.80
A60: 35089 | B60: Alabama | C60: Kellyton | D60: Coosa | E60: ALROS | K60: 0.54 | L60: MNC | M60: 0.42-0.65
A61: 35091 | B61: Alabama | C61: Kimberly | D61: Jefferson | E61: ALROS | K61: 0.45 | L61: FR | M61: 0.30-0.55
A62: 35094 | B62: Alabama | C62: Leeds | D62: Jefferson | E62: ALROS
A63: 35096 | B63: Alabama | C63: Lincoln | D63: Talladega | E63: ALROS | J63: Florida | L63: Holmes , Jackson, Washington, Calhoun, Leon, Liberty , Gadsden
A64: 35097 | B64: Alabama | C64: Locust Fork | D64: Blount | E64: ALZN3 | J64: Zone 8
A65: 35098 | B65: Alabama | C65: Logan | D65: Cullman | E65: ALZN3 | K65: 0.87 | L65: FRAME/ LMF | M65: 0.75-0.97 | O65: Frame/NC/JM – 2-3%
A66: 35111 | B66: Alabama | C66: Mc Calla | D66: Jefferson | E66: ALROS | K66: 0.77 | L66: NC | M66: 0.70-0.92 | O66: MNC or better - 2%
A67: 35112 | B67: Alabama | C67: Margaret | D67: Saint Clair | E67: ALZN3 | K67: 0.7 | L67: JM | M67: 0.54-0.82
A68: 35114 | B68: Alabama | C68: Maylene | D68: Shelby | E68: ALROS | K68: 0.57 | L68: MNC | M68: 0.44-0.67
A69: 35115 | B69: Alabama | C69: Montevallo | D69: Shelby | E69: ALROS | K69: 0.47 | L69: FR | M69: 0.32-0.57
A70: 35116 | B70: Alabama | C70: Morris | D70: Jefferson | E70: ALROS
A71: 35117 | B71: Alabama | C71: Mount Olive | D71: Jefferson | E71: ALROS | J71: GA Zone 1 | K71: TIER 1 Counties Bryan, Camden, Chatham, Glynn, Liberty, McIntosh
A72: 35118 | B72: Alabama | C72: Mulga | D72: Jefferson | E72: ALROS | K72: 0.7 | L72: FRAME/LMF | M72: .50-1.0 | N72: 5% Minimum Ded | O72: 0-1 Mile from water +10
A73: 35119 | B73: Alabama | C73: New Castle | D73: Jefferson | E73: ALROS | K73: 0.68 | L73: NC | M73: 48-95 | N73: MNC or better 3% | O73: 1-5 Miles 1.00
A74: 35120 | B74: Alabama | C74: Odenville | D74: Saint Clair | E74: ALZN3 | K74: 0.65 | L74: JM | M74: .46-.90 | O74: 5-10 miles -5
A75: 35121 | B75: Alabama | C75: Oneonta | D75: Blount | E75: ALZN3 | K75: 0.62 | L75: MNC | M75: .43-.87 | O75: Beyond 10 Miles -10
A76: 35123 | B76: Alabama | C76: Palmerdale | D76: Jefferson | E76: ALROS | K76: 0.6 | L76: Fire Resistive | M76: .42-.84
A77: 35124 | B77: Alabama | C77: Pelham | D77: Shelby | E77: ALROS
A78: 35125 | B78: Alabama | C78: Pell City | D78: Saint Clair | E78: ALZN3 | J78: GA Zone 2 Tier 2 Counties Brantley, Brooks, Buloch, Charlton, Decatur, Echols, Effingham, Evans, Gray, Long Lowdnes, Seminole, Thomas, Wayne
A79: 35126 | B79: Alabama | C79: Pinson | D79: Jefferson | E79: ALROS | K79: 0.65 | L79: FRAME/LMF | M79: .46-.85
A80: 35127 | B80: Alabama | C80: Pleasant Grove | D80: Jefferson | E80: ALROS | K80: 0.63 | L80: NC | M80: .44-.82
A81: 35128 | B81: Alabama | C81: Pell City | D81: Saint Clair | E81: ALZN3 | K81: 0.6 | L81: JM | M81: .42-.78
A82: 35130 | B82: Alabama | C82: Quinton | D82: Walker | E82: ALZN3 | K82: 0.58 | L82: MNC | M82: .40-.75
A83: 35131 | B83: Alabama | C83: Ragland | D83: Saint Clair | E83: ALZN3 | K83: 0.55 | L83: Fire Resistive | M83: .39-.72
A84: 35133 | B84: Alabama | C84: Remlap | D84: Blount | E84: ALZN3
A85: 35135 | B85: Alabama | C85: Riverside | D85: Saint Clair | E85: ALZN3 | J85: GA Zone 3 Northwest GA
A86: 35136 | B86: Alabama | C86: Rockford | D86: Coosa | E86: ALROS | K86: 0.6 | L86: FRAME/LMF | M86: .42-.78
A87: 35137 | B87: Alabama | C87: Saginaw | D87: Shelby | E87: ALROS | K87: 0.58 | L87: NC | M87: .40-.75
A88: 35139 | B88: Alabama | C88: Sayre | D88: Jefferson | E88: ALROS | K88: 0.55 | L88: JM | M88: .39-.72
A89: 35142 | B89: Alabama | C89: Shannon | D89: Jefferson | E89: ALROS | K89: 0.52 | L89: MNC | M89: .36-.68
A90: 35143 | B90: Alabama | C90: Shelby | D90: Shelby | E90: ALROS | K90: 0.5 | L90: Fire Resistive | M90: .35-.65
A91: 35144 | B91: Alabama | C91: Siluria | D91: Shelby | E91: ALROS
A92: 35146 | B92: Alabama | C92: Springville | D92: Saint Clair | E92: ALZN3 | J92: GA Zone ROS
A93: 35147 | B93: Alabama | C93: Sterrett | D93: Shelby | E93: ALROS | K93: 0.55 | L93: FRAME/LMF | M93: .39-.72
A94: 35148 | B94: Alabama | C94: Sumiton | D94: Walker | E94: ALZN3 | K94: 0.53 | L94: NC | M94: .37-.69
A95: 35149 | B95: Alabama | C95: Sycamore | D95: Talladega | E95: ALROS | K95: 0.5 | L95: JM | M95: .35-.65
A96: 35150 | B96: Alabama | C96: Sylacauga | D96: Talladega | E96: ALROS | K96: 0.48 | L96: MNC | M96: .34-.63
A97: 35151 | B97: Alabama | C97: Sylacauga | D97: Talladega | E97: ALROS | K97: 0.45 | L97: Fire Resistive | M97: .32-.59
A98: 35160 | B98: Alabama | C98: Talladega | D98: Talladega | E98: ALROS | J98: ALABAMA Zone 1 | K98: ZONE 1-TIER 1 counties Mobile & Baldwin
A99: 35161 | B99: Alabama | C99: Talladega | D99: Talladega | E99: ALROS | K99: 0.95 | L99: FRAME/LMF | M99: .67-1.35 | N99: 5% Minimum Ded | O99: 0-1 Mile from water +10 | P99: Frame/NC/JM – 2-3%
A100: 35171 | B100: Alabama | C100: Thorsby | D100: Chilton | E100: ALROS | K100: 0.92 | L100: NC | M100: .65-1.29 | N100: MNC or better 3% | O100: 1-5 Miles 1.00 | P100: MNC or better - 2%
A101: 35172 | B101: Alabama | C101: Trafford | D101: Jefferson | E101: ALROS | K101: 0.9 | L101: JM | M101: .66-1.26 | O101: 5-10 miles -5
A102: 35173 | B102: Alabama | C102: Trussville | D102: Jefferson | E102: ALROS | K102: 0.88 | L102: MNC | M102: .63-1.23 | O102: Beyond 10 Miles -10
A103: 35175 | B103: Alabama | C103: Union Grove | D103: Marshall | E103: ALZN3 | K103: 0.85 | L103: Fire Resistive | M103: .60-1.20
A104: 35176 | B104: Alabama | C104: Vandiver | D104: Shelby | E104: ALROS
A105: 35178 | B105: Alabama | C105: Vincent | D105: Shelby | E105: ALROS | J105: ALABAMA Zone 2 | K105: TIER 2 Counties Clarke, Coffee, Conecuh, Covington, Escambia, Geneva, Houston, Monroe, Washington
A106: 35179 | B106: Alabama | C106: Vinemont | D106: Cullman | E106: ALZN3 | K106: 0.85 | L106: FRAME/LMF | M106: .60-1.10
A107: 35180 | B107: Alabama | C107: Warrior | D107: Jefferson | E107: ALROS | K107: 0.82 | L107: NC | M107: .58-1.07
A108: 35181 | B108: Alabama | C108: Watson | D108: Jefferson | E108: ALROS | K108: 0.8 | L108: JM | M108: .56-1.04
A109: 35182 | B109: Alabama | C109: Wattsville | D109: Saint Clair | E109: ALZN3 | K109: 0.78 | L109: MNC | M109: .55-1.01
A110: 35183 | B110: Alabama | C110: Weogufka | D110: Coosa | E110: ALROS | K110: 0.75 | L110: Fire Resistive | M110: .53-.98
A111: 35184 | B111: Alabama | C111: West Blocton | D111: Bibb | E111: ALROS
A112: 35185 | B112: Alabama | C112: Westover | D112: Shelby | E112: ALROS | J112: ALABAMA Zone 3 | K112: Counties in northern Alabama
A113: 35186 | B113: Alabama | C113: Wilsonville | D113: Shelby | E113: ALROS | K113: 0.85 | L113: FRAME/LMF | M113: .60-1.10
A114: 35187 | B114: Alabama | C114: Wilton | D114: Shelby | E114: ALROS | K114: 0.82 | L114: NC | M114: .58-1.07
A115: 35188 | B115: Alabama | C115: Woodstock | D115: Bibb | E115: ALROS | K115: 0.8 | L115: JM | M115: .56-1.04
A116: 35201 | B116: Alabama | C116: Birmingham | D116: Jefferson | E116: ALROS | K116: 0.78 | L116: MNC | M116: .55-1.01
A117: 35202 | B117: Alabama | C117: Birmingham | D117: Jefferson | E117: ALROS | K117: 0.75 | L117: Fire Resistive | M117: .53-.98
A118: 35203 | B118: Alabama | C118: Birmingham | D118: Jefferson | E118: ALROS
A119: 35204 | B119: Alabama | C119: Birmingham | D119: Jefferson | E119: ALROS | J119: ALABAMA ROS
A120: 35205 | B120: Alabama | C120: Birmingham | D120: Jefferson | E120: ALROS | K120: 0.7 | L120: FRAME/LMF | M120: .50-.91
A121: 35206 | B121: Alabama | C121: Birmingham | D121: Jefferson | E121: ALROS | K121: 0.68 | L121: NC | M121: .48-.88
A122: 35207 | B122: Alabama | C122: Birmingham | D122: Jefferson | E122: ALROS | K122: 0.65 | L122: JM | M122: .46-.85
A123: 35208 | B123: Alabama | C123: Birmingham | D123: Jefferson | E123: ALROS | K123: 0.63 | L123: MNC | M123: .44-.82
A124: 35209 | B124: Alabama | C124: Birmingham | D124: Jefferson | E124: ALROS | K124: 0.6 | L124: Fire Resistive | M124: .42-.55
A125: 35210 | B125: Alabama | C125: Birmingham | D125: Jefferson | E125: ALROS | J125: SC Zone 1 | K125: TIER 1 Counties Beaufort, Charlestion, Colleton, Georgetown. Hampton. Horry, Jasper
A126: 35211 | B126: Alabama | C126: Birmingham | D126: Jefferson | E126: ALROS | K126: 0.75 | L126: FRAME/LMF | M126: .50-1.05 | N126: 5% Minimum Ded | O126: 0-1 Mile from water +10
A127: 35212 | B127: Alabama | C127: Birmingham | D127: Jefferson | E127: ALROS | K127: 0.73 | L127: NC | M127: .51-1.03 | N127: MNC or better 3% | O127: 1-5 Miles 1.00
A128: 35213 | B128: Alabama | C128: Birmingham | D128: Jefferson | E128: ALROS | K128: 0.7 | L128: JM | M128: .49-.98 | O128: 5-10 miles -5
A129: 35214 | B129: Alabama | C129: Birmingham | D129: Jefferson | E129: ALROS | K129: 0.68 | L129: MNC | M129: .48-.95 | O129: Beyond 10 Miles -10
A130: 35215 | B130: Alabama | C130: Birmingham | D130: Jefferson | E130: ALROS | K130: 0.65 | L130: Fire Resistive | M130: .46-.91
A131: 35216 | B131: Alabama | C131: Birmingham | D131: Jefferson | E131: ALROS
A132: 35217 | B132: Alabama | C132: Birmingham | D132: Jefferson | E132: ALROS | J132: SC Zone 2 Tier 2 Counties Bamburg, Berkley, Dillon, Dorcehster, Floreance, Marion, Williamsburg
A133: 35218 | B133: Alabama | C133: Birmingham | D133: Jefferson | E133: ALROS | K133: 0.65 | L133: FRAME/LMF | M133: .46-.85
A134: 35219 | B134: Alabama | C134: Birmingham | D134: Jefferson | E134: ALROS | K134: 0.63 | L134: NC | M134: .44-.82
A135: 35220 | B135: Alabama | C135: Birmingham | D135: Jefferson | E135: ALROS | K135: 0.6 | L135: JM | M135: .42-.78
A136: 35221 | B136: Alabama | C136: Birmingham | D136: Jefferson | E136: ALROS | K136: 0.58 | L136: MNC | M136: .40-.75
A137: 35222 | B137: Alabama | C137: Birmingham | D137: Jefferson | E137: ALROS | K137: 0.55 | L137: Fire Resistive | M137: .39-.72
A138: 35223 | B138: Alabama | C138: Birmingham | D138: Jefferson | E138: ALROS
A139: 35224 | B139: Alabama | C139: Birmingham | D139: Jefferson | E139: ALROS | J139: SC Zone 3 Counties Clarendon,Chesterfiled, Darlington, Dixon, Kershaw, Lancaster, Lee, Marlboro, Sumter
A140: 35225 | B140: Alabama | C140: Birmingham | D140: Jefferson | E140: ALROS | K140: 0.6 | L140: FRAME/LMF | M140: .42-.78
A141: 35226 | B141: Alabama | C141: Birmingham | D141: Jefferson | E141: ALROS | K141: 0.58 | L141: NC | M141: .40-.75
A142: 35228 | B142: Alabama | C142: Birmingham | D142: Jefferson | E142: ALROS | K142: 0.55 | L142: JM | M142: .39-.72
A143: 35229 | B143: Alabama | C143: Birmingham | D143: Jefferson | E143: ALROS | K143: 0.52 | L143: MNC | M143: .36-.68
A144: 35230 | B144: Alabama | C144: Birmingham | D144: Jefferson | E144: ALROS | K144: 0.5 | L144: Fire Resistive | M144: .35-.65
A145: 35231 | B145: Alabama | C145: Birmingham | D145: Jefferson | E145: ALROS
A146: 35232 | B146: Alabama | C146: Birmingham | D146: Jefferson | E146: ALROS | J146: SC Zone ROS
A147: 35233 | B147: Alabama | C147: Birmingham | D147: Jefferson | E147: ALROS | K147: 0.55 | L147: FRAME/LMF | M147: .39-.72
A148: 35234 | B148: Alabama | C148: Birmingham | D148: Jefferson | E148: ALROS | K148: 0.53 | L148: NC | M148: .37-.69
A149: 35235 | B149: Alabama | C149: Birmingham | D149: Jefferson | E149: ALROS | K149: 0.5 | L149: JM | M149: .35-.65
A150: 35236 | B150: Alabama | C150: Birmingham | D150: Jefferson | E150: ALROS | K150: 0.48 | L150: MNC | M150: .34-.63
A151: 35237 | B151: Alabama | C151: Birmingham | D151: Jefferson | E151: ALROS | K151: 0.45 | L151: Fire Resistive | M151: .32-.59
A152: 35238 | B152: Alabama | C152: Birmingham | D152: Jefferson | E152: ALROS
A153: 35240 | B153: Alabama | C153: Birmingham | D153: Jefferson | E153: ALROS
A154: 35242 | B154: Alabama | C154: Birmingham | D154: Shelby | E154: ALROS | J154: By SUBMIT only. We will underwrite Inland Marine Risks and only accounts referred by
A155: 35243 | B155: Alabama | C155: Birmingham | D155: Jefferson | E155: ALROS | J155: our agents in our current state of authority
A156: 35244 | B156: Alabama | C156: Birmingham | D156: Jefferson | E156: ALROS | J156: Miss | K156: Jackson, Harrison
A157: 35245 | B157: Alabama | C157: Birmingham | D157: Jefferson | E157: ALROS | J157: 0.79 | K157: Frame | M157: Frame/NC/JM – 2-3%
A158: 35246 | B158: Alabama | C158: Birmingham | D158: Jefferson | E158: ALROS | K158: LMF | L158: 0.70 - 1.25
A159: 35249 | B159: Alabama | C159: Birmingham | D159: Jefferson | E159: ALROS | J159: 0.74 | K159: NC | L159: 0.65 - 1.10 | M159: MNC or better - 2%
A160: 35253 | B160: Alabama | C160: Birmingham | D160: Jefferson | E160: ALROS | J160: 0.69 | K160: JM | L160: 0.60 - 0.90
A161: 35254 | B161: Alabama | C161: Birmingham | D161: Jefferson | E161: ALROS | J161: 0.64 | K161: MNC | L161: 0.55 - 0.60
A162: 35255 | B162: Alabama | C162: Birmingham | D162: Jefferson | E162: ALROS | J162: 0.59 | K162: FR | L162: 0.50 - 0.50
A163: 35259 | B163: Alabama | C163: Birmingham | D163: Jefferson | E163: ALROS | J163: Texas Zone 1 | K163: Orange, Jefferson, Chambers, Galveston, Brazonia
A164: 35260 | B164: Alabama | C164: Birmingham | D164: Jefferson | E164: ALROS | K164: Frame | L164: Excluded
A165: 35261 | B165: Alabama | C165: Birmingham | D165: Jefferson | E165: ALROS | K165: NC | L165: Excluded
A166: 35263 | B166: Alabama | C166: Birmingham | D166: Jefferson | E166: ALROS | J166: 0.99 | K166: JM | L166: .90-1.20 | M166: 0-3 Miles – 2-5%
A167: 35266 | B167: Alabama | C167: Birmingham | D167: Jefferson | E167: ALROS | J167: 0.89 | K167: MNC | L167: .80-1.10 | M167: 3-10 Miles, NC and JM 2-5% MNC or better 2-3%
A168: 35277 | B168: Alabama | C168: Birmingham | D168: Jefferson | E168: ALROS | J168: 0.79 | K168: FR | L168: .70-.0.95 | M168: 10+ Frame/NC 2-5%, JM or better 2-5%
A169: 35278 | B169: Alabama | C169: Birmingham | D169: Jefferson | E169: ALROS | J169: Texas Zone 2 | K169: Matagorda, Calhoun, Aransas, Nueces, Kiesberg, Kenedy, Willacy Cameron, San Patrico
A170: 35279 | B170: Alabama | C170: Birmingham | D170: Jefferson | E170: ALROS | J170: 0.95 | K170: Frame | L170: 0.70 – 1.00 | M170: 0-3 Miles – 2-5%
A171: 35280 | B171: Alabama | C171: Birmingham | D171: Jefferson | E171: ALROS | J171: 0.89 | K171: NC | L171: 0.80 - 0.95 | M171: 3-10 Miles, NC and JM 2-5% MNC or better 2-3%
A172: 35281 | B172: Alabama | C172: Birmingham | D172: Jefferson | E172: ALROS | J172: 0.79 | K172: JM | L172: 0.70 - 0.85 | M172: 10+ Frame/NC 2-5%, JM or better 2-5%
A173: 35282 | B173: Alabama | C173: Birmingham | D173: Jefferson | E173: ALROS | J173: 0.69 | K173: MNC | L173: 0.60 - 0.75
A174: 35283 | B174: Alabama | C174: Birmingham | D174: Jefferson | E174: ALROS | J174: 0.59 | K174: FR | L174: 0.50 - 0.65
A175: 35285 | B175: Alabama | C175: Birmingham | D175: Jefferson | E175: ALROS
A176: 35286 | B176: Alabama | C176: Birmingham | D176: Jefferson | E176: ALROS
A177: 35287 | B177: Alabama | C177: Birmingham | D177: Jefferson | E177: ALROS
A178: 35288 | B178: Alabama | C178: Birmingham | D178: Jefferson | E178: ALROS
A179: 35289 | B179: Alabama | C179: Birmingham | D179: Jefferson | E179: ALROS
A180: 35290 | B180: Alabama | C180: Birmingham | D180: Jefferson | E180: ALROS
A181: 35291 | B181: Alabama | C181: Birmingham | D181: Jefferson | E181: ALROS
A182: 35292 | B182: Alabama | C182: Birmingham | D182: Jefferson | E182: ALROS
A183: 35293 | B183: Alabama | C183: Birmingham | D183: Jefferson | E183: ALROS
A184: 35294 | B184: Alabama | C184: Birmingham | D184: Jefferson | E184: ALROS
A185: 35295 | B185: Alabama | C185: Birmingham | D185: Jefferson | E185: ALROS
A186: 35296 | B186: Alabama | C186: Birmingham | D186: Jefferson | E186: ALROS
A187: 35297 | B187: Alabama | C187: Birmingham | D187: Jefferson | E187: ALROS
A188: 35298 | B188: Alabama | C188: Birmingham | D188: Jefferson | E188: ALROS
A189: 35299 | B189: Alabama | C189: Birmingham | D189: Jefferson | E189: ALROS
A190: 35401 | B190: Alabama | C190: Tuscaloosa | D190: Tuscaloosa | E190: ALROS
A191: 35402 | B191: Alabama | C191: Tuscaloosa | D191: Tuscaloosa | E191: ALROS
A192: 35403 | B192: Alabama | C192: Tuscaloosa | D192: Tuscaloosa | E192: ALROS
A193: 35404 | B193: Alabama | C193: Tuscaloosa | D193: Tuscaloosa | E193: ALROS
A194: 35405 | B194: Alabama | C194: Tuscaloosa | D194: Tuscaloosa | E194: ALROS
A195: 35406 | B195: Alabama | C195: Tuscaloosa | D195: Tuscaloosa | E195: ALROS
A196: 35407 | B196: Alabama | C196: Tuscaloosa | D196: Tuscaloosa | E196: ALROS
A197: 35440 | B197: Alabama | C197: Abernant | D197: Tuscaloosa | E197: ALROS
A198: 35441 | B198: Alabama | C198: Akron | D198: Hale | E198: ALROS
A199: 35442 | B199: Alabama | C199: Aliceville | D199: Pickens | E199: ALROS
A200: 35443 | B200: Alabama | C200: Boligee | D200: Greene | E200: ALROS
... 7893 more rows

Sheet Builders Risk Location Tables (hidden)
A1: Zip Code | B1: State | C1: City | D1: County | E1: WindZone | F1: State Abbr | G1: Territory_Code
A2: Enter Zip | C2: Enter Zip to determine City, State, and County
A3: 35004 | B3: Alabama | C3: Moody | D3: Saint Clair | E3: ALZN3 | F3: AL | G3: =IF(E3="Decline","Decline",IF(RIGHT(E3,3)="ROS","ROS",RIGHT(E3,1)/1)) -> 3
A4: 35005 | B4: Alabama | C4: Adamsville | D4: Jefferson | E4: ALROS | F4: AL | G4: =IF(E4="Decline","Decline",IF(RIGHT(E4,3)="ROS","ROS",RIGHT(E4,1)/1)) -> ROS
A5: 35006 | B5: Alabama | C5: Adger | D5: Jefferson | E5: ALROS | F5: AL | G5: ROS
A6: 35007 | B6: Alabama | C6: Alabaster | D6: Shelby | E6: ALROS | F6: AL | G6: ROS
A7: 35010 | B7: Alabama | C7: Alexander City | D7: Tallapoosa | E7: ALROS | F7: AL | G7: ROS
A8: 35011 | B8: Alabama | C8: Alexander City | D8: Tallapoosa | E8: ALROS | F8: AL | G8: ROS
A9: 35013 | B9: Alabama | C9: Allgood | D9: Blount | E9: ALZN3 | F9: AL | G9: 3
A10: 35014 | B10: Alabama | C10: Alpine | D10: Talladega | E10: ALROS | F10: AL | G10: ROS
A11: 35015 | B11: Alabama | C11: Alton | D11: Jefferson | E11: ALROS | F11: AL | G11: ROS
A12: 35016 | B12: Alabama | C12: Arab | D12: Marshall | E12: ALZN3 | F12: AL | G12: 3
A13: 35019 | B13: Alabama | C13: Baileyton | D13: Cullman | E13: ALZN3 | F13: AL | G13: 3
A14: 35020 | B14: Alabama | C14: Bessemer | D14: Jefferson | E14: ALROS | F14: AL | G14: ROS
A15: 35021 | B15: Alabama | C15: Bessemer | D15: Jefferson | E15: ALROS | F15: AL | G15: ROS
A16: 35022 | B16: Alabama | C16: Bessemer | D16: Jefferson | E16: ALROS | F16: AL | G16: ROS
A17: 35023 | B17: Alabama | C17: Bessemer | D17: Jefferson | E17: ALROS | F17: AL | G17: ROS
A18: 35031 | B18: Alabama | C18: Blountsville | D18: Blount | E18: ALZN3 | F18: AL | G18: 3
A19: 35032 | B19: Alabama | C19: Bon Air | D19: Talladega | E19: ALROS | F19: AL | G19: ROS
A20: 35033 | B20: Alabama | C20: Bremen | D20: Cullman | E20: ALZN3 | F20: AL | G20: 3
A21: 35034 | B21: Alabama | C21: Brent | D21: Bibb | E21: ALROS | F21: AL | G21: ROS
A22: 35035 | B22: Alabama | C22: Brierfield | D22: Bibb | E22: ALROS | F22: AL | G22: ROS
A23: 35036 | B23: Alabama | C23: Brookside | D23: Jefferson | E23: ALROS | F23: AL | G23: ROS
A24: 35038 | B24: Alabama | C24: Burnwell | D24: Walker | E24: ALZN3 | F24: AL | G24: 3
A25: 35040 | B25: Alabama | C25: Calera | D25: Shelby | E25: ALROS | F25: AL | G25: ROS
A26: 35041 | B26: Alabama | C26: Cardiff | D26: Jefferson | E26: ALROS | F26: AL | G26: ROS
A27: 35042 | B27: Alabama | C27: Centreville | D27: Bibb | E27: ALROS | F27: AL | G27: ROS
A28: 35043 | B28: Alabama | C28: Chelsea | D28: Shelby | E28: ALROS | F28: AL | G28: ROS
A29: 35044 | B29: Alabama | C29: Childersburg | D29: Talladega | E29: ALROS | F29: AL | G29: ROS
A30: 35045 | B30: Alabama | C30: Clanton | D30: Chilton | E30: ALROS | F30: AL | G30: ROS
A31: 35046 | B31: Alabama | C31: Clanton | D31: Chilton | E31: ALROS | F31: AL | G31: ROS
A32: 35048 | B32: Alabama | C32: Clay | D32: Jefferson | E32: ALROS | F32: AL | G32: ROS
A33: 35049 | B33: Alabama | C33: Cleveland | D33: Blount | E33: ALZN3 | F33: AL | G33: 3
A34: 35051 | B34: Alabama | C34: Columbiana | D34: Shelby | E34: ALROS | F34: AL | G34: ROS
A35: 35052 | B35: Alabama | C35: Cook Springs | D35: Saint Clair | E35: ALZN3 | F35: AL | G35: 3
A36: 35053 | B36: Alabama | C36: Crane Hill | D36: Cullman | E36: ALZN3 | F36: AL | G36: 3
A37: 35054 | B37: Alabama | C37: Cropwell | D37: Saint Clair | E37: ALZN3 | F37: AL | G37: 3
A38: 35055 | B38: Alabama | C38: Cullman | D38: Cullman | E38: ALZN3 | F38: AL | G38: 3
A39: 35056 | B39: Alabama | C39: Cullman | D39: Cullman | E39: ALZN3 | F39: AL | G39: 3
A40: 35057 | B40: Alabama | C40: Cullman | D40: Cullman | E40: ALZN3 | F40: AL | G40: 3
A41: 35058 | B41: Alabama | C41: Cullman | D41: Cullman | E41: ALZN3 | F41: AL | G41: 3
A42: 35060 | B42: Alabama | C42: Docena | D42: Jefferson | E42: ALROS | F42: AL | G42: ROS
A43: 35061 | B43: Alabama | C43: Dolomite | D43: Jefferson | E43: ALROS | F43: AL | G43: ROS
A44: 35062 | B44: Alabama | C44: Dora | D44: Jefferson | E44: ALROS | F44: AL | G44: ROS
A45: 35063 | B45: Alabama | C45: Empire | D45: Walker | E45: ALZN3 | F45: AL | G45: 3
A46: 35064 | B46: Alabama | C46: Fairfield | D46: Jefferson | E46: ALROS | F46: AL | G46: ROS
A47: 35068 | B47: Alabama | C47: Fultondale | D47: Jefferson | E47: ALROS | F47: AL | G47: ROS
A48: 35070 | B48: Alabama | C48: Garden City | D48: Cullman | E48: ALZN3 | F48: AL | G48: 3
A49: 35071 | B49: Alabama | C49: Gardendale | D49: Jefferson | E49: ALROS | F49: AL | G49: ROS
A50: 35072 | B50: Alabama | C50: Goodwater | D50: Coosa | E50: ALROS | F50: AL | G50: ROS
A51: 35073 | B51: Alabama | C51: Graysville | D51: Jefferson | E51: ALROS | F51: AL | G51: ROS
A52: 35074 | B52: Alabama | C52: Green Pond | D52: Bibb | E52: ALROS | F52: AL | G52: ROS
A53: 35077 | B53: Alabama | C53: Hanceville | D53: Cullman | E53: ALZN3 | F53: AL | G53: 3
A54: 35078 | B54: Alabama | C54: Harpersville | D54: Shelby | E54: ALROS | F54: AL | G54: ROS
A55: 35079 | B55: Alabama | C55: Hayden | D55: Blount | E55: ALZN3 | F55: AL | G55: 3
A56: 35080 | B56: Alabama | C56: Helena | D56: Shelby | E56: ALROS | F56: AL | G56: ROS
A57: 35082 | B57: Alabama | C57: Hollins | D57: Clay | E57: ALROS | F57: AL | G57: ROS
A58: 35083 | B58: Alabama | C58: Holly Pond | D58: Cullman | E58: ALZN3 | F58: AL | G58: 3
A59: 35085 | B59: Alabama | C59: Jemison | D59: Chilton | E59: ALROS | F59: AL | G59: ROS
A60: 35087 | B60: Alabama | C60: Joppa | D60: Cullman | E60: ALZN3 | F60: AL | G60: 3
A61: 35089 | B61: Alabama | C61: Kellyton | D61: Coosa | E61: ALROS | F61: AL | G61: ROS
A62: 35091 | B62: Alabama | C62: Kimberly | D62: Jefferson | E62: ALROS | F62: AL | G62: ROS
A63: 35094 | B63: Alabama | C63: Leeds | D63: Jefferson | E63: ALROS | F63: AL | G63: ROS
A64: 35096 | B64: Alabama | C64: Lincoln | D64: Talladega | E64: ALROS | F64: AL | G64: ROS
A65: 35097 | B65: Alabama | C65: Locust Fork | D65: Blount | E65: ALZN3 | F65: AL | G65: 3
A66: 35098 | B66: Alabama | C66: Logan | D66: Cullman | E66: ALZN3 | F66: AL | G66: 3
A67: 35111 | B67: Alabama | C67: Mc Calla | D67: Jefferson | E67: ALROS | F67: AL | G67: ROS
A68: 35112 | B68: Alabama | C68: Margaret | D68: Saint Clair | E68: ALZN3 | F68: AL | G68: =IF(E68="Decline","Decline",IF(RIGHT(E68,3)="ROS","ROS",RIGHT(E68,1)/1)) -> 3
A69: 35114 | B69: Alabama | C69: Maylene | D69: Shelby | E69: ALROS | F69: AL | G69: ROS
A70: 35115 | B70: Alabama | C70: Montevallo | D70: Shelby | E70: ALROS | F70: AL | G70: ROS
A71: 35116 | B71: Alabama | C71: Morris | D71: Jefferson | E71: ALROS | F71: AL | G71: ROS
A72: 35117 | B72: Alabama | C72: Mount Olive | D72: Jefferson | E72: ALROS | F72: AL | G72: ROS
A73: 35118 | B73: Alabama | C73: Mulga | D73: Jefferson | E73: ALROS | F73: AL | G73: ROS
A74: 35119 | B74: Alabama | C74: New Castle | D74: Jefferson | E74: ALROS | F74: AL | G74: ROS
A75: 35120 | B75: Alabama | C75: Odenville | D75: Saint Clair | E75: ALZN3 | F75: AL | G75: 3
A76: 35121 | B76: Alabama | C76: Oneonta | D76: Blount | E76: ALZN3 | F76: AL | G76: 3
A77: 35123 | B77: Alabama | C77: Palmerdale | D77: Jefferson | E77: ALROS | F77: AL | G77: ROS
A78: 35124 | B78: Alabama | C78: Pelham | D78: Shelby | E78: ALROS | F78: AL | G78: ROS
A79: 35125 | B79: Alabama | C79: Pell City | D79: Saint Clair | E79: ALZN3 | F79: AL | G79: 3
A80: 35126 | B80: Alabama | C80: Pinson | D80: Jefferson | E80: ALROS | F80: AL | G80: ROS
A81: 35127 | B81: Alabama | C81: Pleasant Grove | D81: Jefferson | E81: ALROS | F81: AL | G81: ROS
A82: 35128 | B82: Alabama | C82: Pell City | D82: Saint Clair | E82: ALZN3 | F82: AL | G82: 3
A83: 35130 | B83: Alabama | C83: Quinton | D83: Walker | E83: ALZN3 | F83: AL | G83: 3
A84: 35131 | B84: Alabama | C84: Ragland | D84: Saint Clair | E84: ALZN3 | F84: AL | G84: 3
A85: 35133 | B85: Alabama | C85: Remlap | D85: Blount | E85: ALZN3 | F85: AL | G85: 3
A86: 35135 | B86: Alabama | C86: Riverside | D86: Saint Clair | E86: ALZN3 | F86: AL | G86: 3
A87: 35136 | B87: Alabama | C87: Rockford | D87: Coosa | E87: ALROS | F87: AL | G87: ROS
A88: 35137 | B88: Alabama | C88: Saginaw | D88: Shelby | E88: ALROS | F88: AL | G88: ROS
A89: 35139 | B89: Alabama | C89: Sayre | D89: Jefferson | E89: ALROS | F89: AL | G89: ROS
A90: 35142 | B90: Alabama | C90: Shannon | D90: Jefferson | E90: ALROS | F90: AL | G90: ROS
A91: 35143 | B91: Alabama | C91: Shelby | D91: Shelby | E91: ALROS | F91: AL | G91: ROS
A92: 35144 | B92: Alabama | C92: Siluria | D92: Shelby | E92: ALROS | F92: AL | G92: ROS
A93: 35146 | B93: Alabama | C93: Springville | D93: Saint Clair | E93: ALZN3 | F93: AL | G93: 3
A94: 35147 | B94: Alabama | C94: Sterrett | D94: Shelby | E94: ALROS | F94: AL | G94: ROS
A95: 35148 | B95: Alabama | C95: Sumiton | D95: Walker | E95: ALZN3 | F95: AL | G95: 3
A96: 35149 | B96: Alabama | C96: Sycamore | D96: Talladega | E96: ALROS | F96: AL | G96: ROS
A97: 35150 | B97: Alabama | C97: Sylacauga | D97: Talladega | E97: ALROS | F97: AL | G97: ROS
A98: 35151 | B98: Alabama | C98: Sylacauga | D98: Talladega | E98: ALROS | F98: AL | G98: ROS
A99: 35160 | B99: Alabama | C99: Talladega | D99: Talladega | E99: ALROS | F99: AL | G99: ROS
A100: 35161 | B100: Alabama | C100: Talladega | D100: Talladega | E100: ALROS | F100: AL | G100: ROS
A101: 35171 | B101: Alabama | C101: Thorsby | D101: Chilton | E101: ALROS | F101: AL | G101: ROS
A102: 35172 | B102: Alabama | C102: Trafford | D102: Jefferson | E102: ALROS | F102: AL | G102: ROS
A103: 35173 | B103: Alabama | C103: Trussville | D103: Jefferson | E103: ALROS | F103: AL | G103: ROS
A104: 35175 | B104: Alabama | C104: Union Grove | D104: Marshall | E104: ALZN3 | F104: AL | G104: 3
A105: 35176 | B105: Alabama | C105: Vandiver | D105: Shelby | E105: ALROS | F105: AL | G105: ROS
A106: 35178 | B106: Alabama | C106: Vincent | D106: Shelby | E106: ALROS | F106: AL | G106: ROS
A107: 35179 | B107: Alabama | C107: Vinemont | D107: Cullman | E107: ALZN3 | F107: AL | G107: 3
A108: 35180 | B108: Alabama | C108: Warrior | D108: Jefferson | E108: ALROS | F108: AL | G108: ROS
A109: 35181 | B109: Alabama | C109: Watson | D109: Jefferson | E109: ALROS | F109: AL | G109: ROS
A110: 35182 | B110: Alabama | C110: Wattsville | D110: Saint Clair | E110: ALZN3 | F110: AL | G110: 3
A111: 35183 | B111: Alabama | C111: Weogufka | D111: Coosa | E111: ALROS | F111: AL | G111: ROS
A112: 35184 | B112: Alabama | C112: West Blocton | D112: Bibb | E112: ALROS | F112: AL | G112: ROS
A113: 35185 | B113: Alabama | C113: Westover | D113: Shelby | E113: ALROS | F113: AL | G113: ROS
A114: 35186 | B114: Alabama | C114: Wilsonville | D114: Shelby | E114: ALROS | F114: AL | G114: ROS
A115: 35187 | B115: Alabama | C115: Wilton | D115: Shelby | E115: ALROS | F115: AL | G115: ROS
A116: 35188 | B116: Alabama | C116: Woodstock | D116: Bibb | E116: ALROS | F116: AL | G116: ROS
A117: 35201 | B117: Alabama | C117: Birmingham | D117: Jefferson | E117: ALROS | F117: AL | G117: ROS
A118: 35202 | B118: Alabama | C118: Birmingham | D118: Jefferson | E118: ALROS | F118: AL | G118: ROS
A119: 35203 | B119: Alabama | C119: Birmingham | D119: Jefferson | E119: ALROS | F119: AL | G119: ROS
A120: 35204 | B120: Alabama | C120: Birmingham | D120: Jefferson | E120: ALROS | F120: AL | G120: ROS
A121: 35205 | B121: Alabama | C121: Birmingham | D121: Jefferson | E121: ALROS | F121: AL | G121: ROS
A122: 35206 | B122: Alabama | C122: Birmingham | D122: Jefferson | E122: ALROS | F122: AL | G122: ROS
A123: 35207 | B123: Alabama | C123: Birmingham | D123: Jefferson | E123: ALROS | F123: AL | G123: ROS
A124: 35208 | B124: Alabama | C124: Birmingham | D124: Jefferson | E124: ALROS | F124: AL | G124: ROS
A125: 35209 | B125: Alabama | C125: Birmingham | D125: Jefferson | E125: ALROS | F125: AL | G125: ROS
A126: 35210 | B126: Alabama | C126: Birmingham | D126: Jefferson | E126: ALROS | F126: AL | G126: ROS
A127: 35211 | B127: Alabama | C127: Birmingham | D127: Jefferson | E127: ALROS | F127: AL | G127: ROS
A128: 35212 | B128: Alabama | C128: Birmingham | D128: Jefferson | E128: ALROS | F128: AL | G128: ROS
A129: 35213 | B129: Alabama | C129: Birmingham | D129: Jefferson | E129: ALROS | F129: AL | G129: ROS
A130: 35214 | B130: Alabama | C130: Birmingham | D130: Jefferson | E130: ALROS | F130: AL | G130: ROS
A131: 35215 | B131: Alabama | C131: Birmingham | D131: Jefferson | E131: ALROS | F131: AL | G131: ROS
A132: 35216 | B132: Alabama | C132: Birmingham | D132: Jefferson | E132: ALROS | F132: AL | G132: =IF(E132="Decline","Decline",IF(RIGHT(E132,3)="ROS","ROS",RIGHT(E132,1)/1)) -> ROS
A133: 35217 | B133: Alabama | C133: Birmingham | D133: Jefferson | E133: ALROS | F133: AL | G133: ROS
A134: 35218 | B134: Alabama | C134: Birmingham | D134: Jefferson | E134: ALROS | F134: AL | G134: ROS
A135: 35219 | B135: Alabama | C135: Birmingham | D135: Jefferson | E135: ALROS | F135: AL | G135: ROS
A136: 35220 | B136: Alabama | C136: Birmingham | D136: Jefferson | E136: ALROS | F136: AL | G136: ROS
A137: 35221 | B137: Alabama | C137: Birmingham | D137: Jefferson | E137: ALROS | F137: AL | G137: ROS
A138: 35222 | B138: Alabama | C138: Birmingham | D138: Jefferson | E138: ALROS | F138: AL | G138: ROS
A139: 35223 | B139: Alabama | C139: Birmingham | D139: Jefferson | E139: ALROS | F139: AL | G139: ROS
A140: 35224 | B140: Alabama | C140: Birmingham | D140: Jefferson | E140: ALROS | F140: AL | G140: ROS
A141: 35225 | B141: Alabama | C141: Birmingham | D141: Jefferson | E141: ALROS | F141: AL | G141: ROS
A142: 35226 | B142: Alabama | C142: Birmingham | D142: Jefferson | E142: ALROS | F142: AL | G142: ROS
A143: 35228 | B143: Alabama | C143: Birmingham | D143: Jefferson | E143: ALROS | F143: AL | G143: ROS
A144: 35229 | B144: Alabama | C144: Birmingham | D144: Jefferson | E144: ALROS | F144: AL | G144: ROS
A145: 35230 | B145: Alabama | C145: Birmingham | D145: Jefferson | E145: ALROS | F145: AL | G145: ROS
A146: 35231 | B146: Alabama | C146: Birmingham | D146: Jefferson | E146: ALROS | F146: AL | G146: ROS
A147: 35232 | B147: Alabama | C147: Birmingham | D147: Jefferson | E147: ALROS | F147: AL | G147: ROS
A148: 35233 | B148: Alabama | C148: Birmingham | D148: Jefferson | E148: ALROS | F148: AL | G148: ROS
A149: 35234 | B149: Alabama | C149: Birmingham | D149: Jefferson | E149: ALROS | F149: AL | G149: ROS
A150: 35235 | B150: Alabama | C150: Birmingham | D150: Jefferson | E150: ALROS | F150: AL | G150: ROS
A151: 35236 | B151: Alabama | C151: Birmingham | D151: Jefferson | E151: ALROS | F151: AL | G151: ROS
A152: 35237 | B152: Alabama | C152: Birmingham | D152: Jefferson | E152: ALROS | F152: AL | G152: ROS
A153: 35238 | B153: Alabama | C153: Birmingham | D153: Jefferson | E153: ALROS | F153: AL | G153: ROS
A154: 35240 | B154: Alabama | C154: Birmingham | D154: Jefferson | E154: ALROS | F154: AL | G154: ROS
A155: 35242 | B155: Alabama | C155: Birmingham | D155: Shelby | E155: ALROS | F155: AL | G155: ROS
A156: 35243 | B156: Alabama | C156: Birmingham | D156: Jefferson | E156: ALROS | F156: AL | G156: ROS
A157: 35244 | B157: Alabama | C157: Birmingham | D157: Jefferson | E157: ALROS | F157: AL | G157: ROS
A158: 35245 | B158: Alabama | C158: Birmingham | D158: Jefferson | E158: ALROS | F158: AL | G158: ROS
A159: 35246 | B159: Alabama | C159: Birmingham | D159: Jefferson | E159: ALROS | F159: AL | G159: ROS
A160: 35249 | B160: Alabama | C160: Birmingham | D160: Jefferson | E160: ALROS | F160: AL | G160: ROS
A161: 35253 | B161: Alabama | C161: Birmingham | D161: Jefferson | E161: ALROS | F161: AL | G161: ROS
A162: 35254 | B162: Alabama | C162: Birmingham | D162: Jefferson | E162: ALROS | F162: AL | G162: ROS
A163: 35255 | B163: Alabama | C163: Birmingham | D163: Jefferson | E163: ALROS | F163: AL | G163: ROS
A164: 35259 | B164: Alabama | C164: Birmingham | D164: Jefferson | E164: ALROS | F164: AL | G164: ROS
A165: 35260 | B165: Alabama | C165: Birmingham | D165: Jefferson | E165: ALROS | F165: AL | G165: ROS
A166: 35261 | B166: Alabama | C166: Birmingham | D166: Jefferson | E166: ALROS | F166: AL | G166: ROS
A167: 35263 | B167: Alabama | C167: Birmingham | D167: Jefferson | E167: ALROS | F167: AL | G167: ROS
A168: 35266 | B168: Alabama | C168: Birmingham | D168: Jefferson | E168: ALROS | F168: AL | G168: ROS
A169: 35277 | B169: Alabama | C169: Birmingham | D169: Jefferson | E169: ALROS | F169: AL | G169: ROS
A170: 35278 | B170: Alabama | C170: Birmingham | D170: Jefferson | E170: ALROS | F170: AL | G170: ROS
A171: 35279 | B171: Alabama | C171: Birmingham | D171: Jefferson | E171: ALROS | F171: AL | G171: ROS
A172: 35280 | B172: Alabama | C172: Birmingham | D172: Jefferson | E172: ALROS | F172: AL | G172: ROS
A173: 35281 | B173: Alabama | C173: Birmingham | D173: Jefferson | E173: ALROS | F173: AL | G173: ROS
A174: 35282 | B174: Alabama | C174: Birmingham | D174: Jefferson | E174: ALROS | F174: AL | G174: ROS
A175: 35283 | B175: Alabama | C175: Birmingham | D175: Jefferson | E175: ALROS | F175: AL | G175: ROS
A176: 35285 | B176: Alabama | C176: Birmingham | D176: Jefferson | E176: ALROS | F176: AL | G176: ROS
A177: 35286 | B177: Alabama | C177: Birmingham | D177: Jefferson | E177: ALROS | F177: AL | G177: ROS
A178: 35287 | B178: Alabama | C178: Birmingham | D178: Jefferson | E178: ALROS | F178: AL | G178: ROS
A179: 35288 | B179: Alabama | C179: Birmingham | D179: Jefferson | E179: ALROS | F179: AL | G179: ROS
A180: 35289 | B180: Alabama | C180: Birmingham | D180: Jefferson | E180: ALROS | F180: AL | G180: ROS
A181: 35290 | B181: Alabama | C181: Birmingham | D181: Jefferson | E181: ALROS | F181: AL | G181: ROS
A182: 35291 | B182: Alabama | C182: Birmingham | D182: Jefferson | E182: ALROS | F182: AL | G182: ROS
A183: 35292 | B183: Alabama | C183: Birmingham | D183: Jefferson | E183: ALROS | F183: AL | G183: ROS
A184: 35293 | B184: Alabama | C184: Birmingham | D184: Jefferson | E184: ALROS | F184: AL | G184: ROS
A185: 35294 | B185: Alabama | C185: Birmingham | D185: Jefferson | E185: ALROS | F185: AL | G185: ROS
A186: 35295 | B186: Alabama | C186: Birmingham | D186: Jefferson | E186: ALROS | F186: AL | G186: ROS
A187: 35296 | B187: Alabama | C187: Birmingham | D187: Jefferson | E187: ALROS | F187: AL | G187: ROS
A188: 35297 | B188: Alabama | C188: Birmingham | D188: Jefferson | E188: ALROS | F188: AL | G188: ROS
A189: 35298 | B189: Alabama | C189: Birmingham | D189: Jefferson | E189: ALROS | F189: AL | G189: ROS
A190: 35299 | B190: Alabama | C190: Birmingham | D190: Jefferson | E190: ALROS | F190: AL | G190: ROS
A191: 35401 | B191: Alabama | C191: Tuscaloosa | D191: Tuscaloosa | E191: ALROS | F191: AL | G191: ROS
A192: 35402 | B192: Alabama | C192: Tuscaloosa | D192: Tuscaloosa | E192: ALROS | F192: AL | G192: ROS
A193: 35403 | B193: Alabama | C193: Tuscaloosa | D193: Tuscaloosa | E193: ALROS | F193: AL | G193: ROS
A194: 35404 | B194: Alabama | C194: Tuscaloosa | D194: Tuscaloosa | E194: ALROS | F194: AL | G194: ROS
A195: 35405 | B195: Alabama | C195: Tuscaloosa | D195: Tuscaloosa | E195: ALROS | F195: AL | G195: ROS
A196: 35406 | B196: Alabama | C196: Tuscaloosa | D196: Tuscaloosa | E196: ALROS | F196: AL | G196: =IF(E196="Decline","Decline",IF(RIGHT(E196,3)="ROS","ROS",RIGHT(E196,1)/1)) -> ROS
A197: 35407 | B197: Alabama | C197: Tuscaloosa | D197: Tuscaloosa | E197: ALROS | F197: AL | G197: ROS
A198: 35440 | B198: Alabama | C198: Abernant | D198: Tuscaloosa | E198: ALROS | F198: AL | G198: ROS
A199: 35441 | B199: Alabama | C199: Akron | D199: Hale | E199: ALROS | F199: AL | G199: ROS
A200: 35442 | B200: Alabama | C200: Aliceville | D200: Pickens | E200: ALROS | F200: AL | G200: ROS
... 3623 more rows

Sheet zips (hidden)
A1: =IF(MATCH(A2,$J$2:$J$326,0),J1,IF(MATCH(A2,$K$2:$K$82,0),K1,1)) ->  | J1: FLZN1 | K1: FLZN2 | L1: FLZN3 | M1: FLZN4 | N1: FLZN5 | O1: FLZN6 | P1: FLZN7 | Q1: FLZN8 | R1: GAZN1 | S1: ALZN1 | T1: SCZN1 | U1: MISSZN1 | V1: TXZN1 | W1: TXZN2
A2: ='Property Rater'!D4 -> 31558 | B2: Zip | C2: CITY | D2: State | E2: COUNTY | J2: 33002 | K2: 32754 | L2: 32621 | M2: 32320 | N2: 32102 | O2: 32004 | P2: 32003 | Q2: 32301 | R2: 30002
A3: =IF(MATCH(A2,$K$2:$K$82,0),K1,1) ->  | B3: 501 | C3: Holtsville | D3: New York | J3: 33004 | K3: 32775 | L3: 32625 | M3: 32322 | N3: 32111 | O3: 32009 | P3: 32006 | Q3: 32302 | R3: 30003
B4: 544 | C4: Holtsville | D4: New York | J4: 33008 | K4: 32780 | L4: 32626 | M4: 32323 | N4: 32113 | O4: 32011 | P4: 32007 | Q4: 32303 | R4: 30004
B5: 601 | C5: Adjuntas | D5: Puerto Rico | J5: 33009 | K5: 32781 | L5: 32639 | M5: 32326 | N5: 32133 | O5: 32033 | P5: 32008 | Q5: 32304 | R5: 30005
B6: 602 | C6: Aguada | D6: Puerto Rico | J6: 33010 | K6: 32783 | L6: 32644 | M6: 32327 | N6: 32134 | O6: 32034 | P6: 32013 | Q6: 32305 | R6: 30006
B7: 603 | C7: Aguadilla | D7: Puerto Rico | J7: 33011 | K7: 32796 | L7: 32668 | M7: 32328 | N7: 32158 | O7: 32035 | P7: 32024 | Q7: 32306 | R7: 30007
B8: 604 | C8: Aguadilla | D8: Puerto Rico | J8: 33012 | K8: 32815 | L8: 32683 | M8: 32329 | N8: 32159 | O8: 32041 | P8: 32025 | Q8: 32307 | R8: 30008
B9: 605 | C9: Aguadilla | D9: Puerto Rico | J9: 33013 | K9: 32899 | L9: 32696 | M9: 32336 | N9: 32162 | O9: 32046 | P9: 32026 | Q9: 32308 | R9: 30009
B10: 606 | C10: Maricao | D10: Puerto Rico | J10: 33014 | K10: 32901 | L10: 33503 | M10: 32337 | N10: 32163 | O10: 32080 | P10: 32030 | Q10: 32309 | R10: 30010
B11: 610 | C11: Anasco | D11: Puerto Rico | J11: 33015 | K11: 32902 | L11: 33508 | M11: 32344 | N11: 32179 | O11: 32081 | P11: 32038 | Q11: 32310 | R11: 30011
B12: 611 | C12: Angeles | D12: Puerto Rico | J12: 33016 | K12: 32903 | L12: 33509 | M12: 32345 | N12: 32182 | O12: 32082 | P12: 32040 | Q12: 32311 | R12: 30012
B13: 612 | C13: Arecibo | D13: Puerto Rico | J13: 33017 | K13: 32904 | L13: 33510 | M13: 32346 | N13: 32183 | O13: 32084 | P13: 32042 | Q13: 32312 | R13: 30013
B14: 613 | C14: Arecibo | D14: Puerto Rico | J14: 33018 | K14: 32905 | L14: 33511 | M14: 32347 | N14: 32192 | O14: 32085 | P14: 32043 | Q14: 32313 | R14: 30014
B15: 614 | C15: Arecibo | D15: Puerto Rico | J15: 33019 | K15: 32906 | L15: 33523 | M15: 32348 | N15: 32195 | O15: 32086 | P15: 32044 | Q15: 32314 | R15: 30015
B16: 616 | C16: Bajadero | D16: Puerto Rico | J16: 33020 | K16: 32907 | L16: 33524 | M16: 32355 | N16: 32617 | O16: 32092 | P16: 32050 | Q16: 32315 | R16: 30016
B17: 617 | C17: Barceloneta | D17: Puerto Rico | J17: 33021 | K17: 32908 | L17: 33525 | M17: 32356 | N17: 32634 | O17: 32095 | P17: 32052 | Q17: 32316 | R17: 30017
B18: 622 | C18: Boqueron | D18: Puerto Rico | J18: 33022 | K18: 32909 | L18: 33526 | M18: 32357 | N18: 32663 | O18: 32097 | P18: 32053 | Q18: 32317 | R18: 30018
B19: 623 | C19: Cabo Rojo | D19: Puerto Rico | J19: 33023 | K19: 32910 | L19: 33527 | M19: 32358 | N19: 32664 | O19: 32099 | P19: 32054 | Q19: 32318 | R19: 30019
B20: 624 | C20: Penuelas | D20: Puerto Rico | J20: 33024 | K20: 32911 | L20: 33530 | M20: 32359 | N20: 32681 | O20: 32105 | P20: 32055 | Q20: 32321 | R20: 30021
B21: 627 | C21: Camuy | D21: Puerto Rico | J21: 33025 | K21: 32912 | L21: 33534 | M21: 32361 | N21: 32686 | O21: 32110 | P21: 32056 | Q21: 32324 | R21: 30022
B22: 631 | C22: Castaner | D22: Puerto Rico | J22: 33026 | K22: 32919 | L22: 33537 | M22: 32401 | N22: 32701 | O22: 32114 | P22: 32058 | Q22: 32330 | R22: 30023
B23: 636 | C23: Rosario | D23: Puerto Rico | J23: 33027 | K23: 32920 | L23: 33539 | M23: 32402 | N23: 32702 | O23: 32115 | P23: 32059 | Q23: 32332 | R23: 30024
B24: 637 | C24: Sabana Grande | D24: Puerto Rico | J24: 33028 | K24: 32922 | L24: 33540 | M24: 32403 | N24: 32703 | O24: 32116 | P24: 32060 | Q24: 32333 | R24: 30025
B25: 638 | C25: Ciales | D25: Puerto Rico | J25: 33029 | K25: 32923 | L25: 33541 | M25: 32404 | N25: 32704 | O25: 32117 | P25: 32061 | Q25: 32334 | R25: 30026
B26: 641 | C26: Utuado | D26: Puerto Rico | J26: 33030 | K26: 32924 | L26: 33542 | M26: 32405 | N26: 32707 | O26: 32118 | P26: 32062 | Q26: 32335 | R26: 30028
B27: 646 | C27: Dorado | D27: Puerto Rico | J27: 33031 | K27: 32925 | L27: 33543 | M27: 32406 | N27: 32708 | O27: 32119 | P27: 32063 | Q27: 32343 | R27: 30029
B28: 647 | C28: Ensenada | D28: Puerto Rico | J28: 33032 | K28: 32926 | L28: 33544 | M28: 32407 | N28: 32709 | O28: 32120 | P28: 32064 | Q28: 32351 | R28: 30030
B29: 650 | C29: Florida | D29: Puerto Rico | J29: 33033 | K29: 32927 | L29: 33545 | M29: 32408 | N29: 32710 | O29: 32121 | P29: 32065 | Q29: 32352 | R29: 30031
B30: 652 | C30: Garrochales | D30: Puerto Rico | J30: 33034 | K30: 32931 | L30: 33547 | M30: 32409 | N30: 32712 | O30: 32122 | P30: 32066 | Q30: 32353 | R30: 30032
B31: 653 | C31: Guanica | D31: Puerto Rico | J31: 33035 | K31: 32932 | L31: 33548 | M31: 32410 | N31: 32714 | O31: 32123 | P31: 32067 | Q31: 32360 | R31: 30033
B32: 656 | C32: Guayanilla | D32: Puerto Rico | J32: 33039 | K32: 32934 | L32: 33549 | M32: 32411 | N32: 32715 | O32: 32124 | P32: 32068 | Q32: 32362 | R32: 30034
B33: 659 | C33: Hatillo | D33: Puerto Rico | J33: 33054 | K33: 32935 | L33: 33550 | M33: 32412 | N33: 32716 | O33: 32125 | P33: 32071 | Q33: 32395 | R33: 30035
B34: 660 | C34: Hormigueros | D34: Puerto Rico | J34: 33055 | K34: 32936 | L34: 33556 | M34: 32413 | N34: 32718 | O34: 32126 | P34: 32072 | Q34: 32399 | R34: 30036
B35: 662 | C35: Isabela | D35: Puerto Rico | J35: 33056 | K35: 32937 | L35: 33558 | M35: 32417 | N35: 32719 | O35: 32127 | P35: 32073 | Q35: 32420 | R35: 30037
B36: 664 | C36: Jayuya | D36: Puerto Rico | J36: 33060 | K36: 32940 | L36: 33559 | M36: 32422 | N36: 32726 | O36: 32128 | P36: 32079 | Q36: 32421 | R36: 30038
B37: 667 | C37: Lajas | D37: Puerto Rico | J37: 33061 | K37: 32941 | L37: 33563 | M37: 32433 | N37: 32727 | O37: 32129 | P37: 32083 | Q37: 32423 | R37: 30039
B38: 669 | C38: Lares | D38: Puerto Rico | J38: 33062 | K38: 32948 | L38: 33564 | M38: 32434 | N38: 32730 | O38: 32130 | P38: 32087 | Q38: 32424 | R38: 30040
B39: 670 | C39: Las Marias | D39: Puerto Rico | J39: 33063 | K39: 32949 | L39: 33565 | M39: 32435 | N39: 32732 | O39: 32132 | P39: 32091 | Q39: 32425 | R39: 30041
B40: 674 | C40: Manati | D40: Puerto Rico | J40: 33064 | K40: 32950 | L40: 33566 | M40: 32438 | N40: 32733 | O40: 32135 | P40: 32094 | Q40: 32426 | R40: 30042
B41: 676 | C41: Moca | D41: Puerto Rico | J41: 33065 | K41: 32951 | L41: 33567 | M41: 32439 | N41: 32735 | O41: 32136 | P41: 32096 | Q41: 32427 | R41: 30043
B42: 677 | C42: Rincon | D42: Puerto Rico | J42: 33066 | K42: 32952 | L42: 33568 | M42: 32444 | N42: 32736 | O42: 32137 | P42: 32112 | Q42: 32428 | R42: 30044
B43: 678 | C43: Quebradillas | D43: Puerto Rico | J43: 33067 | K43: 32953 | L43: 33569 | M43: 32456 | N43: 32745 | O43: 32141 | P43: 32131 | Q43: 32430 | R43: 30045
B44: 680 | C44: Mayaguez | D44: Puerto Rico | J44: 33068 | K44: 32954 | L44: 33570 | M44: 32457 | N44: 32746 | O44: 32142 | P44: 32138 | Q44: 32431 | R44: 30046
B45: 681 | C45: Mayaguez | D45: Puerto Rico | J45: 33069 | K45: 32955 | L45: 33571 | M45: 32459 | N45: 32747 | O45: 32143 | P45: 32139 | Q45: 32432 | R45: 30047
B46: 682 | C46: Mayaguez | D46: Puerto Rico | J46: 33071 | K46: 32956 | L46: 33572 | M46: 32461 | N46: 32750 | O46: 32145 | P46: 32140 | Q46: 32437 | R46: 30048
B47: 683 | C47: San German | D47: Puerto Rico | J47: 33072 | K47: 32957 | L47: 33573 | M47: 32465 | N47: 32751 | O47: 32164 | P47: 32147 | Q47: 32440 | R47: 30049
B48: 685 | C48: San Sebastian | D48: Puerto Rico | J48: 33073 | K48: 32958 | L48: 33574 | M48: 32466 | N48: 32752 | O48: 32168 | P48: 32148 | Q48: 32442 | R48: 30052
B49: 687 | C49: Morovis | D49: Puerto Rico | J49: 33074 | K49: 32959 | L49: 33575 | M49: 32501 | N49: 32756 | O49: 32169 | P49: 32149 | Q49: 32443 | R49: 30054
B50: 688 | C50: Sabana Hoyos | D50: Puerto Rico | J50: 33075 | K50: 32960 | L50: 33576 | M50: 32502 | N50: 32757 | O50: 32170 | P50: 32157 | Q50: 32445 | R50: 30055
B51: 690 | C51: San Antonio | D51: Puerto Rico | J51: 33076 | K51: 32961 | L51: 33578 | M51: 32503 | N51: 32762 | O51: 32173 | P51: 32160 | Q51: 32446 | R51: 30056
B52: 692 | C52: Vega Alta | D52: Puerto Rico | J52: 33077 | K52: 32962 | L52: 33579 | M52: 32504 | N52: 32765 | O52: 32174 | P52: 32177 | Q52: 32447 | R52: 30058
B53: 693 | C53: Vega Baja | D53: Puerto Rico | J53: 33081 | K53: 32963 | L53: 33583 | M53: 32505 | N53: 32766 | O53: 32175 | P53: 32178 | Q53: 32448 | R53: 30060
B54: 694 | C54: Vega Baja | D54: Puerto Rico | J54: 33082 | K54: 32964 | L54: 33584 | M54: 32506 | N54: 32767 | O54: 32176 | P54: 32181 | Q54: 32449 | R54: 30061
B55: 698 | C55: Yauco | D55: Puerto Rico | J55: 33083 | K55: 32965 | L55: 33586 | M55: 32507 | N55: 32768 | O55: 32180 | P55: 32185 | Q55: 32452 | R55: 30062
B56: 703 | C56: Aguas Buenas | D56: Puerto Rico | J56: 33084 | K56: 32966 | L56: 33587 | M56: 32508 | N56: 32771 | O56: 32190 | P56: 32187 | Q56: 32455 | R56: 30063
B57: 704 | C57: Aguirre | D57: Puerto Rico | J57: 33090 | K57: 32967 | L57: 33592 | M57: 32509 | N57: 32772 | O57: 32198 | P57: 32189 | Q57: 32460 | R57: 30064
B58: 705 | C58: Aibonito | D58: Puerto Rico | J58: 33092 | K58: 32968 | L58: 33593 | M58: 32511 | N58: 32773 | O58: 32201 | P58: 32193 | Q58: 32462 | R58: 30065
B59: 707 | C59: Maunabo | D59: Puerto Rico | J59: 33093 | K59: 32969 | L59: 33594 | M59: 32512 | N59: 32776 | O59: 32202 | P59: 32331 | Q59: 32463
B60: 714 | C60: Arroyo | D60: Puerto Rico | J60: 33097 | K60: 32970 | L60: 33595 | M60: 32513 | N60: 32777 | O60: 32203 | P60: 32340 | Q60: 32464
B61: 715 | C61: Mercedita | D61: Puerto Rico | J61: 33101 | K61: 32971 | L61: 33596 | M61: 32514 | N61: 32778 | O61: 32204 | P61: 32341
B62: 716 | C62: Ponce | D62: Puerto Rico | J62: 33102 | K62: 32976 | L62: 33598 | M62: 32516 | N62: 32779 | O62: 32205 | P62: 32350
B63: 717 | C63: Ponce | D63: Puerto Rico | J63: 33106 | K63: 32978 | L63: 33601 | M63: 32520 | N63: 32784 | O63: 32206 | P63: 32601
B64: 718 | C64: Naguabo | D64: Puerto Rico | J64: 33109 | K64: 34945 | L64: 33602 | M64: 32521 | N64: 32789 | O64: 32207 | P64: 32602
B65: 719 | C65: Naranjito | D65: Puerto Rico | J65: 33111 | K65: 34946 | L65: 33603 | M65: 32522 | N65: 32790 | O65: 32208 | P65: 32603
B66: 720 | C66: Orocovis | D66: Puerto Rico | J66: 33112 | K66: 34947 | L66: 33604 | M66: 32523 | N66: 32791 | O66: 32209 | P66: 32604
B67: 721 | C67: Palmer | D67: Puerto Rico | J67: 33114 | K67: 34948 | L67: 33605 | M67: 32524 | N67: 32792 | O67: 32210 | P67: 32605
B68: 723 | C68: Patillas | D68: Puerto Rico | J68: 33116 | K68: 34949 | L68: 33606 | M68: 32526 | N68: 32793 | O68: 32211 | P68: 32606
B69: 725 | C69: Caguas | D69: Puerto Rico | J69: 33119 | K69: 34950 | L69: 33607 | M69: 32530 | N69: 32794 | O69: 32212 | P69: 32607
B70: 726 | C70: Caguas | D70: Puerto Rico | J70: 33122 | K70: 34951 | L70: 33608 | M70: 32531 | N70: 32795 | O70: 32214 | P70: 32608
B71: 727 | C71: Caguas | D71: Puerto Rico | J71: 33124 | K71: 34952 | L71: 33609 | M71: 32533 | N71: 32798 | O71: 32216 | P71: 32609
B72: 728 | C72: Ponce | D72: Puerto Rico | J72: 33125 | K72: 34953 | L72: 33610 | M72: 32534 | N72: 32799 | O72: 32217 | P72: 32610
B73: 729 | C73: Canovanas | D73: Puerto Rico | J73: 33126 | K73: 34954 | L73: 33611 | M73: 32535 | N73: 32801 | O73: 32218 | P73: 32611
B74: 730 | C74: Ponce | D74: Puerto Rico | J74: 33127 | K74: 34979 | L74: 33612 | M74: 32536 | N74: 32802 | O74: 32219 | P74: 32612
B75: 731 | C75: Ponce | D75: Puerto Rico | J75: 33128 | K75: 34981 | L75: 33613 | M75: 32537 | N75: 32803 | O75: 32220 | P75: 32614
B76: 732 | C76: Ponce | D76: Puerto Rico | J76: 33129 | K76: 34982 | L76: 33614 | M76: 32538 | N76: 32804 | O76: 32221 | P76: 32615
B77: 733 | C77: Ponce | D77: Puerto Rico | J77: 33130 | K77: 34983 | L77: 33615 | M77: 32539 | N77: 32805 | O77: 32222 | P77: 32616
B78: 734 | C78: Ponce | D78: Puerto Rico | J78: 33131 | K78: 34984 | L78: 33616 | M78: 32540 | N78: 32806 | O78: 32223 | P78: 32618
B79: 735 | C79: Ceiba | D79: Puerto Rico | J79: 33132 | K79: 34985 | L79: 33617 | M79: 32541 | N79: 32807 | O79: 32224 | P79: 32619
B80: 736 | C80: Cayey | D80: Puerto Rico | J80: 33133 | K80: 34986 | L80: 33618 | M80: 32542 | N80: 32808 | O80: 32225 | P80: 32622
B81: 737 | C81: Cayey | D81: Puerto Rico | J81: 33134 | K81: 34987 | L81: 33619 | M81: 32544 | N81: 32809 | O81: 32226 | P81: 32627
B82: 738 | C82: Fajardo | D82: Puerto Rico | J82: 33135 | K82: 34988 | L82: 33620 | M82: 32547 | N82: 32810 | O82: 32227 | P82: 32631
B83: 739 | C83: Cidra | D83: Puerto Rico | J83: 33136 | L83: 33621 | M83: 32548 | N83: 32811 | O83: 32228 | P83: 32633
B84: 740 | C84: Puerto Real | D84: Puerto Rico | J84: 33137 | L84: 33622 | M84: 32549 | N84: 32812 | O84: 32229 | P84: 32635
B85: 741 | C85: Punta Santiago | D85: Puerto Rico | J85: 33138 | L85: 33623 | M85: 32550 | N85: 32814 | O85: 32231 | P85: 32640
B86: 742 | C86: Roosevelt Roads | D86: Puerto Rico | J86: 33139 | L86: 33624 | M86: 32559 | N86: 32816 | O86: 32232 | P86: 32641
B87: 744 | C87: Rio Blanco | D87: Puerto Rico | J87: 33140 | L87: 33625 | M87: 32560 | N87: 32817 | O87: 32233 | P87: 32643
B88: 745 | C88: Rio Grande | D88: Puerto Rico | J88: 33141 | L88: 33626 | M88: 32561 | N88: 32818 | O88: 32234 | P88: 32653
B89: 751 | C89: Salinas | D89: Puerto Rico | J89: 33142 | L89: 33629 | M89: 32562 | N89: 32819 | O89: 32235 | P89: 32654
B90: 754 | C90: San Lorenzo | D90: Puerto Rico | J90: 33143 | L90: 33630 | M90: 32563 | N90: 32820 | O90: 32236 | P90: 32655
B91: 757 | C91: Santa Isabel | D91: Puerto Rico | J91: 33144 | L91: 33631 | M91: 32564 | N91: 32821 | O91: 32237 | P91: 32656
B92: 765 | C92: Vieques | D92: Puerto Rico | J92: 33145 | L92: 33633 | M92: 32565 | N92: 32822 | O92: 32238 | P92: 32658
B93: 766 | C93: Villalba | D93: Puerto Rico | J93: 33146 | L93: 33634 | M93: 32566 | N93: 32824 | O93: 32239 | P93: 32662
B94: 767 | C94: Yabucoa | D94: Puerto Rico | J94: 33147 | L94: 33635 | M94: 32567 | N94: 32825 | O94: 32240 | P94: 32666
B95: 769 | C95: Coamo | D95: Puerto Rico | J95: 33149 | L95: 33637 | M95: 32568 | N95: 32826 | O95: 32241 | P95: 32667
B96: 771 | C96: Las Piedras | D96: Puerto Rico | J96: 33150 | L96: 33646 | M96: 32569 | N96: 32827 | O96: 32244 | P96: 32669
B97: 772 | C97: Loiza | D97: Puerto Rico | J97: 33151 | L97: 33647 | M97: 32570 | N97: 32828 | O97: 32245 | P97: 32693
B98: 773 | C98: Luquillo | D98: Puerto Rico | J98: 33152 | L98: 33650 | M98: 32571 | N98: 32829 | O98: 32246 | P98: 32694
B99: 775 | C99: Culebra | D99: Puerto Rico | J99: 33153 | L99: 33655 | M99: 32572 | N99: 32830 | O99: 32247 | P99: 32697
B100: 777 | C100: Juncos | D100: Puerto Rico | J100: 33154 | L100: 33660 | M100: 32577 | N100: 32831 | O100: 32250
B101: 778 | C101: Gurabo | D101: Puerto Rico | J101: 33155 | L101: 33661 | M101: 32578 | N101: 32832 | O101: 32254
B102: 780 | C102: Coto Laurel | D102: Puerto Rico | J102: 33156 | L102: 33662 | M102: 32579 | N102: 32833 | O102: 32255
B103: 782 | C103: Comerio | D103: Puerto Rico | J103: 33157 | L103: 33663 | M103: 32580 | N103: 32834 | O103: 32256
B104: 783 | C104: Corozal | D104: Puerto Rico | J104: 33158 | L104: 33664 | M104: 32583 | N104: 32835 | O104: 32257
B105: 784 | C105: Guayama | D105: Puerto Rico | J105: 33159 | L105: 33672 | M105: 32588 | N105: 32836 | O105: 32258
B106: 785 | C106: Guayama | D106: Puerto Rico | J106: 33160 | L106: 33673 | M106: 32591 | N106: 32837 | O106: 32259
B107: 786 | C107: La Plata | D107: Puerto Rico | J107: 33161 | L107: 33674 | N107: 32839 | O107: 32260
B108: 791 | C108: Humacao | D108: Puerto Rico | J108: 33162 | L108: 33675 | N108: 32853 | O108: 32266
B109: 792 | C109: Humacao | D109: Puerto Rico | J109: 33163 | L109: 33677 | N109: 32854 | O109: 32277
B110: 794 | C110: Barranquitas | D110: Puerto Rico | J110: 33164 | L110: 33679 | N110: 32855 | O110: 32706
B111: 795 | C111: Juana Diaz | D111: Puerto Rico | J111: 33165 | L111: 33680 | N111: 32856 | O111: 32713
B112: 801 | C112: St Thomas | D112: Virgin Islands | J112: 33166 | L112: 33681 | N112: 32857 | O112: 32720
B113: 802 | C113: St Thomas | D113: Virgin Islands | J113: 33167 | L113: 33682 | N113: 32858 | O113: 32721
B114: 803 | C114: St Thomas | D114: Virgin Islands | J114: 33168 | L114: 33684 | N114: 32859 | O114: 32722
B115: 804 | C115: St Thomas | D115: Virgin Islands | J115: 33169 | L115: 33685 | N115: 32860 | O115: 32723
B116: 805 | C116: St Thomas | D116: Virgin Islands | J116: 33170 | L116: 33686 | N116: 32861 | O116: 32724
B117: 820 | C117: Christiansted | D117: Virgin Islands | J117: 33172 | L117: 33687 | N117: 32862 | O117: 32725
B118: 821 | C118: Christiansted | D118: Virgin Islands | J118: 33173 | L118: 33688 | N118: 32867 | O118: 32728
B119: 822 | C119: Christiansted | D119: Virgin Islands | J119: 33174 | L119: 33689 | N119: 32868 | O119: 32738
B120: 823 | C120: Christiansted | D120: Virgin Islands | J120: 33175 | L120: 33694 | N120: 32869 | O120: 32739
B121: 824 | C121: Christiansted | D121: Virgin Islands | J121: 33176 | L121: 33701 | N121: 32872 | O121: 32744
B122: 830 | C122: St John | D122: Virgin Islands | J122: 33177 | L122: 33702 | N122: 32877 | O122: 32753
B123: 831 | C123: St John | D123: Virgin Islands | J123: 33178 | L123: 33703 | N123: 32878 | O123: 32759
B124: 840 | C124: Frederiksted | D124: Virgin Islands | J124: 33179 | L124: 33704 | N124: 32885 | O124: 32763
B125: 841 | C125: Frederiksted | D125: Virgin Islands | J125: 33180 | L125: 33705 | N125: 32886 | O125: 32764
B126: 850 | C126: Kingshill | D126: Virgin Islands | J126: 33181 | L126: 33706 | N126: 32887 | O126: 32774
B127: 851 | C127: Kingshill | D127: Virgin Islands | J127: 33182 | L127: 33707 | N127: 32891
B128: 901 | C128: San Juan | D128: Puerto Rico | J128: 33183 | L128: 33708 | N128: 32896
B129: 902 | C129: San Juan | D129: Puerto Rico | J129: 33184 | L129: 33709 | N129: 32897
B130: 906 | C130: San Juan | D130: Puerto Rico | J130: 33185 | L130: 33710 | N130: 33440
B131: 907 | C131: San Juan | D131: Puerto Rico | J131: 33186 | L131: 33711 | N131: 33471
B132: 908 | C132: San Juan | D132: Puerto Rico | J132: 33187 | L132: 33712 | N132: 33513
B133: 909 | C133: San Juan | D133: Puerto Rico | J133: 33188 | L133: 33713 | N133: 33514
B134: 910 | C134: San Juan | D134: Puerto Rico | J134: 33189 | L134: 33714 | N134: 33521
B135: 911 | C135: San Juan | D135: Puerto Rico | J135: 33190 | L135: 33715 | N135: 33538
B136: 912 | C136: San Juan | D136: Puerto Rico | J136: 33193 | L136: 33716 | N136: 33585
B137: 913 | C137: San Juan | D137: Puerto Rico | J137: 33194 | L137: 33729 | N137: 33597
B138: 914 | C138: San Juan | D138: Puerto Rico | J138: 33196 | L138: 33730 | N138: 33801
B139: 915 | C139: San Juan | D139: Puerto Rico | J139: 33197 | L139: 33731 | N139: 33802
B140: 916 | C140: San Juan | D140: Puerto Rico | J140: 33199 | L140: 33732 | N140: 33803
B141: 917 | C141: San Juan | D141: Puerto Rico | J141: 33206 | L141: 33733 | N141: 33804
B142: 918 | C142: San Juan | D142: Puerto Rico | J142: 33222 | L142: 33734 | N142: 33805
B143: 919 | C143: San Juan | D143: Puerto Rico | J143: 33231 | L143: 33736 | N143: 33806
B144: 920 | C144: San Juan | D144: Puerto Rico | J144: 33233 | L144: 33737 | N144: 33807
B145: 921 | C145: San Juan | D145: Puerto Rico | J145: 33234 | L145: 33738 | N145: 33809
B146: 922 | C146: San Juan | D146: Puerto Rico | J146: 33238 | L146: 33740 | N146: 33810
B147: 923 | C147: San Juan | D147: Puerto Rico | J147: 33239 | L147: 33741 | N147: 33811
B148: 924 | C148: San Juan | D148: Puerto Rico | J148: 33242 | L148: 33742 | N148: 33812
B149: 925 | C149: San Juan | D149: Puerto Rico | J149: 33243 | L149: 33743 | N149: 33813
B150: 926 | C150: San Juan | D150: Puerto Rico | J150: 33245 | L150: 33744 | N150: 33815
B151: 927 | C151: San Juan | D151: Puerto Rico | J151: 33247 | L151: 33747 | N151: 33820
B152: 928 | C152: San Juan | D152: Puerto Rico | J152: 33255 | L152: 33755 | N152: 33823
B153: 929 | C153: San Juan | D153: Puerto Rico | J153: 33256 | L153: 33756 | N153: 33825
B154: 930 | C154: San Juan | D154: Puerto Rico | J154: 33257 | L154: 33757 | N154: 33826
B155: 931 | C155: San Juan | D155: Puerto Rico | J155: 33261 | L155: 33758 | N155: 33827
B156: 933 | C156: San Juan | D156: Puerto Rico | J156: 33265 | L156: 33759 | N156: 33830
B157: 934 | C157: Fort Buchanan | D157: Puerto Rico | J157: 33266 | L157: 33760 | N157: 33831
B158: 935 | C158: San Juan | D158: Puerto Rico | J158: 33269 | L158: 33761 | N158: 33834
B159: 936 | C159: San Juan | D159: Puerto Rico | J159: 33280 | L159: 33762 | N159: 33835
B160: 937 | C160: San Juan | D160: Puerto Rico | J160: 33283 | L160: 33763 | N160: 33836
B161: 939 | C161: San Juan | D161: Puerto Rico | J161: 33296 | L161: 33764 | N161: 33837
B162: 940 | C162: San Juan | D162: Puerto Rico | J162: 33299 | L162: 33765 | N162: 33838
B163: 949 | C163: Toa Baja | D163: Puerto Rico | J163: 33301 | L163: 33766 | N163: 33839
B164: 950 | C164: Toa Baja | D164: Puerto Rico | J164: 33302 | L164: 33767 | N164: 33840
B165: 951 | C165: Toa Baja | D165: Puerto Rico | J165: 33303 | L165: 33769 | N165: 33841
B166: 952 | C166: Sabana Seca | D166: Puerto Rico | J166: 33304 | L166: 33770 | N166: 33843
B167: 953 | C167: Toa Alta | D167: Puerto Rico | J167: 33305 | L167: 33771 | N167: 33844
B168: 954 | C168: Toa Alta | D168: Puerto Rico | J168: 33306 | L168: 33772 | N168: 33845
B169: 955 | C169: San Juan | D169: Puerto Rico | J169: 33307 | L169: 33773 | N169: 33846
B170: 956 | C170: Bayamon | D170: Puerto Rico | J170: 33308 | L170: 33774 | N170: 33847
B171: 957 | C171: Bayamon | D171: Puerto Rico | J171: 33309 | L171: 33775 | N171: 33849
B172: 958 | C172: Bayamon | D172: Puerto Rico | J172: 33310 | L172: 33776 | N172: 33850
B173: 959 | C173: Bayamon | D173: Puerto Rico | J173: 33311 | L173: 33777 | N173: 33851
B174: 960 | C174: Bayamon | D174: Puerto Rico | J174: 33312 | L174: 33778 | N174: 33852
B175: 961 | C175: Bayamon | D175: Puerto Rico | J175: 33313 | L175: 33779 | N175: 33853
B176: 962 | C176: Catano | D176: Puerto Rico | J176: 33314 | L176: 33780 | N176: 33854
B177: 963 | C177: Catano | D177: Puerto Rico | J177: 33315 | L177: 33781 | N177: 33855
B178: 965 | C178: Guaynabo | D178: Puerto Rico | J178: 33316 | L178: 33782 | N178: 33856
B179: 966 | C179: Guaynabo | D179: Puerto Rico | J179: 33317 | L179: 33784 | N179: 33857
B180: 968 | C180: Guaynabo | D180: Puerto Rico | J180: 33318 | L180: 33785 | N180: 33858
B181: 969 | C181: Guaynabo | D181: Puerto Rico | J181: 33319 | L181: 33786 | N181: 33859
B182: 970 | C182: Guaynabo | D182: Puerto Rico | J182: 33320 | L182: 33901 | N182: 33860
B183: 971 | C183: Guaynabo | D183: Puerto Rico | J183: 33321 | L183: 33902 | N183: 33862
B184: 975 | C184: San Juan | D184: Puerto Rico | J184: 33322 | L184: 33903 | N184: 33863
B185: 976 | C185: Trujillo Alto | D185: Puerto Rico | J185: 33323 | L185: 33904 | N185: 33865
B186: 977 | C186: Trujillo Alto | D186: Puerto Rico | J186: 33324 | L186: 33905 | N186: 33867
B187: 978 | C187: Saint Just | D187: Puerto Rico | J187: 33325 | L187: 33906 | N187: 33868
B188: 979 | C188: Carolina | D188: Puerto Rico | J188: 33326 | L188: 33907 | N188: 33870
B189: 981 | C189: Carolina | D189: Puerto Rico | J189: 33327 | L189: 33908 | N189: 33871
B190: 982 | C190: Carolina | D190: Puerto Rico | J190: 33328 | L190: 33909 | N190: 33872
B191: 983 | C191: Carolina | D191: Puerto Rico | J191: 33329 | L191: 33910 | N191: 33873
B192: 984 | C192: Carolina | D192: Puerto Rico | J192: 33330 | L192: 33911 | N192: 33875
B193: 985 | C193: Carolina | D193: Puerto Rico | J193: 33331 | L193: 33912 | N193: 33876
B194: 986 | C194: Carolina | D194: Puerto Rico | J194: 33332 | L194: 33913 | N194: 33877
B195: 987 | C195: Carolina | D195: Puerto Rico | J195: 33334 | L195: 33914 | N195: 33880
B196: 988 | C196: Carolina | D196: Puerto Rico | J196: 33335 | L196: 33915 | N196: 33881
B197: 1001 | C197: Agawam | D197: Massachusetts | J197: 33336 | L197: 33916 | N197: 33882
B198: 1002 | C198: Amherst | D198: Massachusetts | J198: 33337 | L198: 33917 | N198: 33883
B199: 1003 | C199: Amherst | D199: Massachusetts | J199: 33338 | L199: 33918 | N199: 33884
B200: 1004 | C200: Amherst | D200: Massachusetts | J200: 33339 | L200: 33919 | N200: 33885
... 4300 more rows

Sheet Property Occupancy Table (hidden)
A1: Key | C1: ISO Code | D1: ISO Occupancy Code Description (AIM) | E1: Rating Class | G1: RATE | H1: Occupancy codes in ALIS are not ISO codes - need to deactivate them all and import codes from AIM (here)
A2: Low | C2: 1052 | D2: Adult/Child Care/Schools | E2: LOW
C3: 0564 | D3: Antiques, Furniture, Pawn & Second Hand Stores | E3: LOW
A4: Medium | C4: 0323 | D4: Apartments w/ Mercantile Occupancies-Over 30 Units | E4: HIGH
C5: 0322 | D5: Apts w/ Mercantile Occupancies-11 to 30 Units | E5: HIGH
A6: High/ Vacant | C6: 0321 | D6: Apts w/ Mercantile Occupancies-Up to 10 Units | E6: HIGH
C7: 0312 | D7: Apts w/out Mercantile Occupancies-11 to 30 Units | E7: HIGH
C8: 0313 | D8: Apts w/out Mercantile Occupancies-Over 30 Units | E8: HIGH
C9: 0311 | D9: Apts w/out Mercantile Occupancies-Up to 10 Units | E9: HIGH
C10: 0512 | D10: Auto Parts Dist & Repair/Rubber & Tire Dealer | E10: High
C11: 0933 | D11: Automobile Service w/ major repairs | E11: HIGH
C12: 0932 | D12: Automobile Service with minor repairs | E12: HIGH
C13: 0541 | D13: Bars and Tavern | E13: HIGH
C14: 0531 | D14: Beverage Distributors & Beverage Stores | E14: LOW
C15: 0561 | D15: Boat and Marine Supply Store | E15: LOW
C16: 1650 | D16: Building Material Dealers&Distributors/Lumberyard | E16: High
C17: 0520 | D17: Carpet/Floors/Fabric/Fur/Laundry/Shoe/Tailer Sales | E17: High
C18: 0900 | D18: Churches or Other Houses or Worship | E18: MEDIUM
C19: 0757 | D19: Clubs-NOC, including fraternal and union hall | E19: MEDIUM | F19: * Use this for both Golf and Exercise Clubs
C20: 0921 | D20: Comm Property w/ Customer Services Performed w/in | E20: LOW | F20: * Use this for Beauty Shop & Animal Services per Alicia
C21: 0844 | D21: Commercial Property High Customer Traffic | E21: MEDIUM | F21: * Use this for Convenience Store
C22: 0570 | D22: Commercial Property Higher Hazard Occupancy | E22: High | F22: * Use this for both Painting Shops and Welding Operations
C23: 0922 | D23: Commercial Property Medium Hazard Occupancy | E23: MEDIUM
C24: 0567 | D24: Commercial Property NOC | E24: MEDIUM
C25: 0332 | D25: Condo-Resident (assoc risk) w/out mercant-11-30 | E25: MEDIUM
C26: 0342 | D26: Condo-Resident (Assoc Risk)-w/ Mercant occ 11-30 | E26: MEDIUM
C27: 0343 | D27: Condo-Resident (assoc risk)-w/ mercantile occ-30+ | E27: MEDIUM
C28: 0333 | D28: Condo-Resident (assoc risk)-w/out mercant Over 30 | E28: MEDIUM
C29: 0341 | D29: Condo-Resident(assoc risk)-w/mercant occ/up to 10 | E29: MEDIUM
C30: 0331 | D30: Condo-Resident(assoc risk)wout mercant-up to10 | E30: MEDIUM
C31: 0562 | D31: Drug Distributor or Drug Store incldg mail order | E31: LOW
C32: 2250 | D32: Food Chemical Mfg / Packaging | E32: MEDIUM
C33: 2300 | D33: Food Chemical Mfg / Sugar Related | E33: MEDIUM
C34: 2600 | D34: Food Products Mfg - NOC | E34: MEDIUM
C35: 2059 | D35: Food Products Mfg-Seafood products, meat proc&pet | E35: MEDIUM
C36: 0534 | D36: Food Products-Sales, Storage&Dist-Limited cooking | E36: MEDIUM
C37: 0532 | D37: Food Stores, Sales, Distributor & Storage | E37: MEDIUM
C38: 0565 | D38: Gemstone Cutting/Polishing&Jewlery Store or Dist | E38: LOW
C39: 0743 | D39: Hotels and Motels - w/ Restaurant - 11 to 30 Units | E39: HIGH
C40: 0744 | D40: Hotels and Motels - w/ Restaurant - Over 30 Units | E40: HIGH
C41: 0742 | D41: Hotels and Motels - w/ Restaurant - Up to 10 Units | E41: HIGH
C42: 0746 | D42: Hotels&Motels-w/out Restaurant-11 to 30 Units | E42: HIGH
C43: 0747 | D43: Hotels&Motels-w/out Restaurant-Over 30 Units | E43: HIGH
C44: 0745 | D44: Hotels&Motels-w/out Restaurant-Up to 10 Units | E44: HIGH
C45: 5100 | D45: Manufacturing - Flamable - High Hazard | E45: High
C46: 5050 | D46: Manufacturing - Flamable - Medium Hazard | E46: MEDIUM
C47: 5000 | D47: Manufacturing - Non-Combustible | E47: LOW
C48: 3959 | D48: Manufacturing Wood Products | E48: High
C49: 6850 | D49: Medium Size & Hazard Manufacturing | E49: LOW
C50: 0582 | D50: Mercantile-Multi occ w/class 0564 (home furnish) | E50: MEDIUM | F50: * Use this for Strip Mall
C51: 0581 | D51: Mercant-Multi occ w/out class 0564 (home furnish) | E51: MEDIUM | F51: * Use this for Strip Mall
C52: 0434 | D52: Mercant-Multi occ-Not large are (15Ksq ft or less) | E52: MEDIUM | F52: * Use this for Strip Mall
C53: 0702 | D53: Offices - Non-Governmental | E53: LOW
C54: 7600 | D54: Oil Refineries | E54: High
C55: 0832 | D55: Radio / TV / Recording Studio or Theater | E55: LOW
C56: 1400 | D56: Recycling, Waste or Junk Storage | E56: High
C57: 0532 | D57: Retaurants | E57: HIGH
C58: 0545 | D58: Restaurants - With limited cooking | E58: Medium
C59: 0542 | D59: Restaurants or Food Cooking Stores | E59: Medium
C60: 1700 | D60: Saw Mills or Dementional Lumber | E60: High
C61: 3809 | D61: Saw Mills or Planing Mills | E61: High
C62: 0432 | D62: Sole occ bldgs&Personal prop/Retail food+15Ksq ft | E62: LOW
C63: 0431 | D63: Sole occ bldgs-Retail/whlsale not than food+15Ksq | E63: LOW
C64: 0566 | D64: Sporting Goods/Athletic Equip-Distributor&Store | E64: LOW
C65: 0852 | D65: Adult Home&Assisted Living Patients w/ problems | E65: LOW
C66: 6900 | D66: Air Conditioning Equipment Mfg - Precision parts | E66: HIGH
C67: 0940 | D67: Airports-Hangars w/out repairing or servicing | E67: HIGH
C68: 0563 | D68: Appliance/Large Electrical equip&Plumbing Distrib | E68: MEDIUM
C69: 1051 | D69: Art Galleries/Libraries/Museums | E69: MEDIUM
C70: 0843 | D70: Auditoriums/Exhibition/Gymnasium | E70: MEDIUM
C71: 0550 | D71: Auto Distributors/including Boats&RVs-no repair | E71: HIGH
C72: 0533 | D72: Bakeries-on premises-no delivery to other outlet | E72: MEDIUM
C73: 2200 | D73: Bakeries/Candy-Baking on premises | E73: MEDIUM
C74: 2400 | D74: Beer, Ale or Malt Liquor Mfg & Yeast Factory | E74: HIGH
C75: 2350 | D75: Beverage Bottlers - soft drink/water | E75: MEDIUM
C76: 1190 | D76: Bldgs w/Outdoor Hazards(Grandstds/Ski Lift/Marina) | E76: MEDIUM
C77: 0851 | D77: Blood Bank / Health Care Facility | E77: LOW
C78: 0076 | D78: Boarding&Lodging, Rooming Houses, Frats&Soros | E78: HIGH
C79: 0075 | D79: Boarding&Lodging, Rooming Houses, Frats&Soros | E79: HIGH
C80: 0074 | D80: Boarding&Lodging, Rooming Houses, Frats&Soros | E80: HIGH
C81: 0841 | D81: Bowling Lane | E81: HIGH
C82: 0845 | D82: Campgrounds-girl/boy scout, church&YMCA camps | E82: HIGH
C83: 2800 | D83: Carpet or Fabric - Mfg | E83: MEDIUM
C84: 3009 | D84: Clothing or Fur Mfg incl Upholstering | E84: MEDIUM
C85: 0755 | D85: Clubs-Sports-Country- w/cooking | E85: HIGH
C86: 0756 | D86: Clubs-Sports-Country- w/out cooking | E86: MEDIUM
C87: 0078 | D87: Convents or Monasteries - 11 to 30 Units | E87: MEDIUM
C88: 0079 | D88: Convents or Monasteries - Over 30 Units | E88: MEDIUM
C89: 0077 | D89: Convents or Monasteries - Up to 10 Units | E89: MEDIUM
C90: 2750 | D90: Cotton Gin Operation | E90: HIGH
C91: 1300 | D91: Cotton Storage Related | E91: HIGH
C92: 2000 | D92: Dairy / Milk Processing | E92: HIGH
C93: 0846 | D93: Dance Halls, Ballrooms or Discotheques-no cooking | E93: MEDIUM
C94: 1251 | D94: Distribs/wholesale/wrhse stock-farm prod not grain | E94: HIGH
C95: 0196 | D95: Dwellings - One Family | E95: HIGH
C96: 0198 | D96: Dwellings - Three or Four Family | E96: HIGH
C97: 0197 | D97: Dwellings - Two Family | E97: HIGH
C98: 2150 | D98: Feed, Grain or Hay Dealers - or Mfg | E98: HIGH
C99: 1252 | D99: Feed, Grain or Hay Dealers-Feed Warehouses on prem | E99: HIGH
C100: 0580 | D100: Florists / Greenhouse / Nursery | E100: MEDIUM
C101: 1211 | D101: Freight Forwarders/Handlers/Warehouse high hazard | E101: HIGH
C102: 0923 | D102: Funeral Homes or Chapel | E102: MEDIUM
C103: 0951 | D103: Gambling - casinos - w/ restaurant | E103: HIGH
C104: 0952 | D104: Gambling - casinos - Without restaurant | E104: HIGH
C105: 7409 | D105: Gas / Oil Companies including Pipelines | E105: HIGH
C106: 0701 | D106: Government or Hospital type institutions | E106: LOW
C107: 1550 | D107: Grain Elevator Operations/Seed strage-rail service | E107: HIGH
C108: 1610 | D108: Grain Elevator Operations/Seed Strage-Road Service | E108: HIGH
C109: 0511 | D109: Hide Dealer/Marble Prod/Mercant NOC/Metal Dealer | E109: HIGH
C110: 1230 | D110: Ice Houses / Warehouses - Public - Cold Storage | E110: MEDIUM
C111: 1000 | D111: Jail or Prisons | E111: HIGH
C112: 6810 | D112: Larger Size & Hazard Manufacturing | E112: HIGH
C113: 0913 | D113: Laundries and Dry Cleaners - self-service | E113: HIGH
C114: 0912 | D114: Laundries and Dry Cleaning Plants - Commercial | E114: HIGH
C115: 0911 | D115: Laundry&Dry Cleaning or Dyeing&Textile Bleaching | E115: HIGH
C116: 3409 | D116: Leather Goods mfg / Hide Tanning | E116: HIGH
C117: 2459 | D117: Liquor / Wine Mfg | E117: HIGH
C118: 5550 | D118: Machinery or Machinery Parts Mfg - Plastic parts | E118: HIGH
C119: 6009 | D119: Manufacturing Mineral related | E119: HIGH
C120: 4450 | D120: Manufacturing Paper Related | E120: HIGH
C121: 5500 | D121: Manufacturing Plastics Related | E121: HIGH
C122: 5759 | D122: Manufacturing Rubber Related | E122: HIGH
C123: 5080 | D123: Metal Scrap Dealers - Iron or Steel | E123: HIGH
C124: 6210 | D124: Mining | E124: HIGH
C125: 0433 | D125: Multiple occupancy buildings over 15K sq ft | E125: MEDIUM
C126: 4400 | D126: Paper / Pulp Mfg | E126: HIGH
C127: 4809 | D127: Printing / Publishing | E127: HIGH
C128: 0834 | D128: Skating Rinks - Roller | E128: HIGH
C129: 0833 | D129: Theaters - Drive-in | E129: HIGH
C130: 0934 | D130: Tire - Retreading or recapping | E130: HIGH
C131: 2550 | D131: Tobacco Products Mfg | E131: HIGH
C132: 1502 | D132: Tobacco Warehouses - Sales/Storage | E132: HIGH
C133: 1501 | D133: Tobacco Warehouses-Storage-storage only/rehandling | E133: HIGH
C134: 1180 | D134: Vacant Building | E134: HIGH
C135: 8015 | D135: Vacant Dwelling | E135: HIGH
C136: 1220 | D136: Warehouse-Public-Household goods storage/no fiber | E136: MEDIUM
C137: 1213 | D137: Warehouse-Public-Mini warehousing of personal prop | E137: MEDIUM
C138: 1212 | D138: Warehouses - Public - NOC | E138: MEDIUM
C139: 1450 | D139: Warehouses-Whiskey/Liquor in connection w/ distill | E139: HIGH

Sheet Worksheet (hidden)
A1: ALIS/ Rating | C1: PROPERTY
A4: Wind/No Wind | C4: LOC # | D4: BLDG # | E4: (Will often be mulitiple locations, and multiple coverages at each location)
A6: Coverage | B6: + | C6: Construction | D6: + | E6: ZONE/Territory | F6: = | G6: Base Rate
A7: Bldg | C7: Frame | E7: Based on State/County
A8: BPP | C8: Joisted Masonry | E8: See commercial plan-pg 11 through 13.
A9: BI | C9: Masonry/Non Combustible | E9: Non Wind Rates are on page 10
A10: Contents | C10: Non Combustible
A11: Stock | C11: Light Metal Frame
C12: Fire Resistive
A14: BR | B14: * | C14: Occupancy Class | E14: * | F14: Age of building | G14: * | H14: Protection Class | I14: * | J14: Distance to Coast | K14: * | L14: AOP Ded Credit | M14: * | N14: Wind Ded Credit | O14: = | P14: Final Rate (FR)
C15: (SEE TABLE ON PG 10) | F15: See table on page 9 | H15: Class 1 through 10 table on page 9 | J15: Table on page 9 | L15: 2500=1% 5000=2% | N15: 2%-3%=1% 5-7.5% =3%
A17: FR | B17: * | C17: Other Credits | D17: * | E17: IRPM | F17: = | G17: Final Modified Rate (FMR)
C18: Sprinkler No Loss Package | E18: Need a documentation
C20: ( Need a dialogue box for documentation of credits.)
A22: FMR | B22: * | C22: Coverage Limit | D22: * | E22: Coverage Period | F22: = | G22: Premium
E23: Pro rata for term
A25: ALIS/ Rating | C25: GENERAL LIABILITY
A27: Territory | B27: + | C27: Class Code | D27: + | E27: Coverage Limit | F27: = | G27: Base Rate (BR)
A28: BY State and county | C28: USE SIU Rate for now | G28: USE SIU Rate sheet
A31: BR | B31: * | C31: Ded Credit | D31: * | E31: IRPM | F31: = | G31: Final Modified Rate (FMR)
C32: 250= 1.1 | E32: See Commercial Plan pg 10
C33: 500= 1.0 | E33: Will need dialogue box for documentation
C34: 1000=.90
C35: 2500= .80
C36: 5000= .70
A38: FMR | B38: * | C38: Exposure | D38: * | E38: Coverage Period | F38: = | G38: Premium

Sheet Contracts (hidden)
A1: Lloyds / GLISE Contract assignment rules
A2: 3149 - Homeowners
A3: 3112 - Monoline Property, Inland Marine, and Builders Risk
A4: 3904 (100%) - Monoline GL and Equipment Breakdown
A5: 3904 (55%) and 7069 (45%) - Package
B6: G/L portion goes 100% to 3904
B7: Property and TRIA portion is split 55/45
A10: Great Lakes Insurance SE Contracts (Risk Co. = GLISE, Market Co. = GLISE)
A11: 3149 | B11: Homeowners
A12: 3112 | B12: Short Tail
A13: 3904 | B13: Package
A15: Certain Underwriters at Lloyds / Bell & Clements Contracts (Risk Co. = Lloyds, Market Company = Bell & Clements)
A16: 7069 | B16: Short Tail
